{"text_format":"1","workbook":"xlsx","n_sheets":1,"sheets":["ТРУБА"],"not_rendered":{"charts":0,"images":0,"macros":1,"external_links":0,"defined_names":1,"comments":1,"pivot_tables":0},"unopened":[],"bounds":{"document_bytes":16777216,"sheet_cells":100000,"rows_first":2000,"rows_last":500,"rows_between":2000,"halvings":0,"cell_chars":16384,"cell_head_chars":4096},"cells_cut":0,"cells_raw":0,"read":"whole","date_system":"1900"}

{"sheet":"ТРУБА","index":0,"n_rows":63,"n_cols":38,"rows_kept":63,"cut":false,"hidden":false,"merged":[[32,26,32,29],[32,23,32,25],[32,17,32,19],[32,8,32,9],[32,13,32,15],[2,7,2,9],[3,2,3,12]]}
["z",null,null,null,null,null,null,null,null,null,"z","z",null,null,null,null,null,null,null,null,null,null,"z","z","z","z","z","z","z","z","z","z","z","z","z","z"]
[]
[]
[]
[null,null,null,null,null,null,null,null,null,null,"Коэфициент ","Маса "]
[null,"См. Косые резы и выполнять согласно чертежа",null,null,null,null,null,"План / шт",110,null,null,{"$f":"SUM(Таблица1[Столбец19])","v":{"$error":"#REF!"}},null,null,null,null,null,null,null,null,null,null,null,null,null,null,null,null,null,null,null,null,null,null,null,null,1,2]
[null,"№ п/п","длина ","ширина условная расчет программы","кол-во на изделие","материал профиль трубы","тол-на","План","кол-во на план",null,{"$f":"SUM(I8:I30)","v":550},{"$f":"SUM(L8:L30)","v":174.61840000000001},null,null,null,null,null,null,null,null,null,null,null,null,null,null,null,null,null,null,null,null,null,null,null,null,"Выпадающий \nсписок по\nэтому столбику","Выпадающий \nсписок по данным,\n которые остались\n возможны"]
[{"$f":"IF(E8=0,\"z\",\"\")","v":""},{"$f":"IF(I8=0,\"\",R8)","v":1},425,500,2,"Труба 30х20х1.2",{"$f":"IF(F8=\"\",\"\",VLOOKUP(F8,Таблица1[[#All],[Столбец5]:[коэф]],2,0))","v":1.2},{"$f":"I6","v":110},{"$f":"E8*H8","v":220},null,{"$f":"IF(F8=\"\",\"\",VLOOKUP(F8,Таблица1[[#All],[Столбец5]:[коэф]],6,0))","v":1.76},{"$f":"IFERROR(C8*D8*I8*K8/1000000-IF(E8=0,0,M8),\"\")","v":82.28},0,null,null,null,null,{"$f":"IF(I8=0,0,1)","v":1}]
[{"$f":"IF(E9=0,\"z\",\"\")","v":""},{"$f":"IF(I9=0,\"\",R9)","v":2},280,500,2,"Труба 40х20х1.2",{"$f":"IF(F9=\"\",\"\",VLOOKUP(F9,Таблица1[[#All],[Столбец5]:[коэф]],2,0))","v":1.2},{"$f":"I6","v":110},{"$f":"E9*H9","v":220},null,{"$f":"IF(F9=\"\",\"\",VLOOKUP(F9,Таблица1[[#All],[Столбец5]:[коэф]],6,0))","v":2.14},{"$f":"IFERROR(C9*D9*I9*K9/1000000-IF(E9=0,0,M9),\"\")","v":65.912000000000006},0,null,null,null,null,{"$f":"IF(I9=0,R8,R8+1)","v":2}]
["",{"$f":"IF(I10=0,\"\",R10)","v":3},273,500,1,"Труба 30х20х1.2",{"$f":"IF(F10=\"\",\"\",VLOOKUP(F10,Таблица1[[#All],[Столбец5]:[коэф]],2,0))","v":1.2},{"$f":"I6","v":110},110,null,{"$f":"IF(F10=\"\",\"\",VLOOKUP(F10,Таблица1[[#All],[Столбец5]:[коэф]],6,0))","v":1.76},26.426400000000001,null,null,null,null,null,{"$f":"IF(I10=0,R9,R9+1)","v":3}]
["z","",null,500,null,"Труба пл.ов. 30х15х1,5",{"$f":"IF(F11=\"\",\"\",VLOOKUP(F11,Таблица1[[#All],[Столбец5]:[коэф]],2,0))","v":1.5},{"$f":"I6","v":110},0,null,{"$f":"IF(F11=\"\",\"\",VLOOKUP(F11,Таблица1[[#All],[Столбец5]:[коэф]],6,0))","v":1.9179999999999999},0,null,null,null,null,null,{"$f":"IF(I11=0,R10,R10+1)","v":3}]
["z","",null,500,null,"Труба пл.ов. 30х15х1,5",{"$f":"IF(F12=\"\",\"\",VLOOKUP(F12,Таблица1[[#All],[Столбец5]:[коэф]],2,0))","v":1.5},{"$f":"I6","v":110},0,null,{"$f":"IF(F12=\"\",\"\",VLOOKUP(F12,Таблица1[[#All],[Столбец5]:[коэф]],6,0))","v":1.9179999999999999},0,null,null,null,null,null,3]
["z","",null,500,null,"Труба 30х15х1,5",{"$f":"IF(F13=\"\",\"\",VLOOKUP(F13,Таблица1[[#All],[Столбец5]:[коэф]],2,0))","v":1.5},{"$f":"I6","v":110},0,null,{"$f":"IF(F13=\"\",\"\",VLOOKUP(F13,Таблица1[[#All],[Столбец5]:[коэф]],6,0))","v":1.92},0,null,null,null,null,null,3]
["z","",null,500,null,"Круг 12",{"$f":"IF(F14=\"\",\"\",VLOOKUP(F14,Таблица1[[#All],[Столбец5]:[коэф]],2,0))","v":12},{"$f":"I6","v":110},0,null,{"$f":"IF(F14=\"\",\"\",VLOOKUP(F14,Таблица1[[#All],[Столбец5]:[коэф]],6,0))","v":1.776},0,null,null,null,null,null,3]
["z","",null,500,null,null,{"$f":"IF(F15=\"\",\"\",VLOOKUP(F15,Таблица1[[#All],[Столбец5]:[коэф]],2,0))","v":""},{"$f":"I6","v":110},0,null,{"$f":"IF(F15=\"\",\"\",VLOOKUP(F15,Таблица1[[#All],[Столбец5]:[коэф]],6,0))","v":""},"",null,null,null,null,null,3]
["z","",null,500,null,null,{"$f":"IF(F16=\"\",\"\",VLOOKUP(F16,Таблица1[[#All],[Столбец5]:[коэф]],2,0))","v":""},{"$f":"I6","v":110},0,null,{"$f":"IF(F16=\"\",\"\",VLOOKUP(F16,Таблица1[[#All],[Столбец5]:[коэф]],6,0))","v":""},"",null,null,null,null,null,3]
["z","",null,500,null,null,{"$f":"IF(F17=\"\",\"\",VLOOKUP(F17,Таблица1[[#All],[Столбец5]:[коэф]],2,0))","v":""},{"$f":"I6","v":110},0,null,{"$f":"IF(F17=\"\",\"\",VLOOKUP(F17,Таблица1[[#All],[Столбец5]:[коэф]],6,0))","v":""},"",null,null,null,null,null,3]
["z","",null,500,null,null,{"$f":"IF(F18=\"\",\"\",VLOOKUP(F18,Таблица1[[#All],[Столбец5]:[коэф]],2,0))","v":""},{"$f":"I6","v":110},0,null,{"$f":"IF(F18=\"\",\"\",VLOOKUP(F18,Таблица1[[#All],[Столбец5]:[коэф]],6,0))","v":""},"",null,null,null,null,null,3]
["z","",null,500,null,null,{"$f":"IF(F19=\"\",\"\",VLOOKUP(F19,Таблица1[[#All],[Столбец5]:[коэф]],2,0))","v":""},{"$f":"I6","v":110},0,null,{"$f":"IF(F19=\"\",\"\",VLOOKUP(F19,Таблица1[[#All],[Столбец5]:[коэф]],6,0))","v":""},"",null,null,null,null,null,3]
["z","",null,500,null,null,{"$f":"IF(F20=\"\",\"\",VLOOKUP(F20,Таблица1[[#All],[Столбец5]:[коэф]],2,0))","v":""},{"$f":"I6","v":110},0,null,{"$f":"IF(F20=\"\",\"\",VLOOKUP(F20,Таблица1[[#All],[Столбец5]:[коэф]],6,0))","v":""},"",null,null,null,null,null,3]
["z","",null,500,null,null,{"$f":"IF(F21=\"\",\"\",VLOOKUP(F21,Таблица1[[#All],[Столбец5]:[коэф]],2,0))","v":""},{"$f":"I6","v":110},0,null,{"$f":"IF(F21=\"\",\"\",VLOOKUP(F21,Таблица1[[#All],[Столбец5]:[коэф]],6,0))","v":""},"",null,null,null,null,null,3]
["z","",null,500,null,null,{"$f":"IF(F22=\"\",\"\",VLOOKUP(F22,Таблица1[[#All],[Столбец5]:[коэф]],2,0))","v":""},{"$f":"I6","v":110},0,null,{"$f":"IF(F22=\"\",\"\",VLOOKUP(F22,Таблица1[[#All],[Столбец5]:[коэф]],6,0))","v":""},"",null,null,null,null,null,3]
["z","",null,500,null,null,{"$f":"IF(F23=\"\",\"\",VLOOKUP(F23,Таблица1[[#All],[Столбец5]:[коэф]],2,0))","v":""},{"$f":"I6","v":110},0,null,{"$f":"IF(F23=\"\",\"\",VLOOKUP(F23,Таблица1[[#All],[Столбец5]:[коэф]],6,0))","v":""},"",null,null,null,null,null,3]
["z","",null,500,null,null,{"$f":"IF(F24=\"\",\"\",VLOOKUP(F24,Таблица1[[#All],[Столбец5]:[коэф]],2,0))","v":""},{"$f":"I6","v":110},0,null,{"$f":"IF(F24=\"\",\"\",VLOOKUP(F24,Таблица1[[#All],[Столбец5]:[коэф]],6,0))","v":""},"",null,null,null,null,null,3]
["z","",null,500,null,null,{"$f":"IF(F25=\"\",\"\",VLOOKUP(F25,Таблица1[[#All],[Столбец5]:[коэф]],2,0))","v":""},{"$f":"I6","v":110},0,null,{"$f":"IF(F25=\"\",\"\",VLOOKUP(F25,Таблица1[[#All],[Столбец5]:[коэф]],6,0))","v":""},"",null,null,null,null,null,3]
["z","",null,500,null,null,{"$f":"IF(F26=\"\",\"\",VLOOKUP(F26,Таблица1[[#All],[Столбец5]:[коэф]],2,0))","v":""},{"$f":"I6","v":110},0,null,{"$f":"IF(F26=\"\",\"\",VLOOKUP(F26,Таблица1[[#All],[Столбец5]:[коэф]],6,0))","v":""},"",null,null,null,null,null,3]
["z","",null,500,null,null,{"$f":"IF(F27=\"\",\"\",VLOOKUP(F27,Таблица1[[#All],[Столбец5]:[коэф]],2,0))","v":""},{"$f":"I6","v":110},0,null,{"$f":"IF(F27=\"\",\"\",VLOOKUP(F27,Таблица1[[#All],[Столбец5]:[коэф]],6,0))","v":""},"",null,null,null,null,null,3]
["z","",null,500,null,null,{"$f":"IF(F28=\"\",\"\",VLOOKUP(F28,Таблица1[[#All],[Столбец5]:[коэф]],2,0))","v":""},{"$f":"I6","v":110},0,null,{"$f":"IF(F28=\"\",\"\",VLOOKUP(F28,Таблица1[[#All],[Столбец5]:[коэф]],6,0))","v":""},"",null,null,null,null,null,3]
["z","",null,500,null,null,{"$f":"IF(F29=\"\",\"\",VLOOKUP(F29,Таблица1[[#All],[Столбец5]:[коэф]],2,0))","v":""},{"$f":"I6","v":110},0,null,{"$f":"IF(F29=\"\",\"\",VLOOKUP(F29,Таблица1[[#All],[Столбец5]:[коэф]],6,0))","v":""},"",null,null,null,null,null,3]
["z","",null,500,null,null,{"$f":"IF(F30=\"\",\"\",VLOOKUP(F30,Таблица1[[#All],[Столбец5]:[коэф]],2,0))","v":""},{"$f":"I6","v":110},0,null,{"$f":"IF(F30=\"\",\"\",VLOOKUP(F30,Таблица1[[#All],[Столбец5]:[коэф]],6,0))","v":""},"",null,null,null,null,null,3]
[]
[]
[null,null,null,null,null,null,null,null,"получить",null,null,null,null,"остаток",null,null,null,"детали",null,null,null,null,null,"расход",null,null,"лом"]
[null,"№ п/п",null,"Стандарт. длина\nмм",null,"Марка материала","Толщина\nмм","Кол-во труб","Масса \nцелых\nкг","Масса\nделовых\nкг","коэф 2м","Резы","Общая\nкг","Деловой остаток с целых\nкг","Деловой остаок с деловых\nкг","Общая\nкг","ЛОМ\nкг","Масса деталей целых\nкг","Масса деталей деловых\nкг","Общая\nкг",null,null,null,"Расход целых\nкг","Расход деловых\nкг","Общий\nкг","ЛОМ\nдубль\nкг","отход\nна\nпорезку","лом \nчистый\nцелых","лом\nчистый\nделовых","Ширина реза\nмм","Марка материала","Марка материала\nАстра"]
["z",null,null,null,"копия","копия"]
["z","Столбец1","Столбец2","Дл","Столбец4","Столбец5","Толщ","Столбец7","Столбец8","Столбец9","коэф","резы","Столбец12","Столбец13","Столбец14","Столбец15","Столбец16","Столбец17","Столбец18","Столбец19","Столбец20","Столбец21","Столбец22","Столбец23","Столбец24","Столбец25","Столбец26","Столбец27","Столбец28","Столбец29","шир.рез","ГОСТ","АСТРА","слово","профиль","Столбец35","нов.толщ","нов.назв"]
[{"$f":"IF(Таблица1[[#This Row],[Столбец19]]=0,\"z\",\"\")","v":{"$error":"#REF!"}},null,null,3000,{"$f":"Таблица1[[#This Row],[АСТРА]]","v":"Круг 12 мм, 12.0 мм, кр12"},{"$f":"Таблица1[[#This Row],[ГОСТ]]","v":"Круг 12"},12,{"$f":"SUMIFS(#REF!,#REF!,500,#REF!,Таблица1[[#This Row],[Дл]],#REF!,Таблица1[[#This Row],[Толщ]],#REF!,Таблица1[[#This Row],[АСТРА]])","v":{"$error":"#REF!"}},{"$f":"SUMIFS(#REF!,#REF!,Таблица1[[#This Row],[Дл]],#REF!,\"=500\",#REF!,Таблица1[[#This Row],[Толщ]],#REF!,Таблица1[[#This Row],[АСТРА]])","v":{"$error":"#REF!"}},{"$f":"SUMIFS(#REF!,#REF!,\"<\"&Таблица1[[#This Row],[Дл]],#REF!,\"=500\",#REF!,Таблица1[[#This Row],[Толщ]],#REF!,Таблица1[[#This Row],[АСТРА]])","v":{"$error":"#REF!"}},1.776,{"$f":"SUMIFS($I$8:$I$30,$F$8:$F$30,Таблица1[[#This Row],[Столбец5]])","v":0},{"$f":"Таблица1[[#This Row],[Столбец8]]+Таблица1[[#This Row],[Столбец9]]","v":{"$error":"#REF!"}},{"$f":"SUMIFS(#REF!,#REF!,Таблица1[[#This Row],[Дл]],#REF!,\"=500\",#REF!,Таблица1[[#This Row],[Толщ]],#REF!,Таблица1[[#This Row],[АСТРА]])","v":{"$error":"#REF!"}},{"$f":"SUMIFS(#REF!,#REF!,\"<\"&Таблица1[[#This Row],[Дл]],#REF!,\"=500\",#REF!,Таблица1[[#This Row],[Толщ]],#REF!,Таблица1[[#This Row],[АСТРА]])","v":{"$error":"#REF!"}},{"$f":"Таблица1[[#This Row],[Столбец13]]+Таблица1[[#This Row],[Столбец14]]","v":{"$error":"#REF!"}},{"$f":"Таблица1[[#This Row],[Столбец28]]+Таблица1[[#This Row],[Столбец29]]-Таблица1[[#This Row],[Столбец27]]","v":{"$error":"#REF!"}},{"$f":"SUMIFS(#REF!,#REF!,Таблица1[[#This Row],[Дл]],#REF!,\"=500\",#REF!,Таблица1[[#This Row],[Толщ]],#REF!,Таблица1[[#This Row],[АСТРА]])","v":{"$error":"#REF!"}},{"$f":"SUMIFS(#REF!,#REF!,\"<\"&Таблица1[[#This Row],[Дл]],#REF!,\"=500\",#REF!,Таблица1[[#This Row],[Толщ]],#REF!,Таблица1[[#This Row],[АСТРА]])","v":{"$error":"#REF!"}},{"$f":"Таблица1[[#This Row],[Столбец17]]+Таблица1[[#This Row],[Столбец18]]","v":{"$error":"#REF!"}},null,null,null,{"$f":"SUMIFS(#REF!,#REF!,Таблица1[[#This Row],[Дл]],#REF!,\"=500\",#REF!,Таблица1[[#This Row],[Толщ]],#REF!,Таблица1[[#This Row],[АСТРА]])","v":{"$error":"#REF!"}},{"$f":"SUMIFS(#REF!,#REF!,\"<\"&Таблица1[[#This Row],[Дл]],#REF!,\"=500\",#REF!,Таблица1[[#This Row],[Толщ]],#REF!,Таблица1[[#This Row],[АСТРА]])","v":{"$error":"#REF!"}},{"$f":"Таблица1[[#This Row],[Столбец23]]+Таблица1[[#This Row],[Столбец24]]","v":{"$error":"#REF!"}},{"$f":"Таблица1[[#This Row],[Столбец28]]+Таблица1[[#This Row],[Столбец29]]-Таблица1[[#This Row],[Столбец27]]","v":{"$error":"#REF!"}},{"$f":"Таблица1[[#This Row],[резы]]*Таблица1[[#This Row],[шир.рез]]/1000*Таблица1[[#This Row],[коэф]]/2","v":0},{"$f":"SUMIFS(#REF!,#REF!,Таблица1[[#This Row],[Дл]],#REF!,\"=500\",#REF!,Таблица1[[#This Row],[Толщ]],#REF!,Таблица1[[#This Row],[АСТРА]])","v":{"$error":"#REF!"}},{"$f":"SUMIFS(#REF!,#REF!,\"<\"&Таблица1[[#This Row],[Дл]],#REF!,\"=500\",#REF!,Таблица1[[#This Row],[Толщ]],#REF!,Таблица1[[#This Row],[АСТРА]])","v":{"$error":"#REF!"}},5,{"$f":"CONCATENATE(Таблица1[[#This Row],[слово]],\" \",Таблица1[[#This Row],[профиль]])","v":"Круг 12"},"Круг 12 мм, 12.0 мм, кр12","Круг",12,12,null,{"$f":"CONCATENATE(Таблица1[[#This Row],[слово]],\" \",Таблица1[[#This Row],[Столбец35]])","v":"Круг 12"}]
[{"$f":"IF(Таблица1[[#This Row],[Столбец19]]=0,\"z\",\"\")","v":{"$error":"#REF!"}},null,null,6000,{"$f":"Таблица1[[#This Row],[АСТРА]]","v":"Труба 10х10, 1.0 мм, тр1010"},{"$f":"Таблица1[[#This Row],[ГОСТ]]","v":"Труба 10х10х1"},1,{"$f":"SUMIFS(#REF!,#REF!,500,#REF!,Таблица1[[#This Row],[Дл]],#REF!,Таблица1[[#This Row],[Толщ]],#REF!,Таблица1[[#This Row],[АСТРА]])","v":{"$error":"#REF!"}},{"$f":"SUMIFS(#REF!,#REF!,Таблица1[[#This Row],[Дл]],#REF!,\"=500\",#REF!,Таблица1[[#This Row],[Толщ]],#REF!,Таблица1[[#This Row],[АСТРА]])","v":{"$error":"#REF!"}},{"$f":"SUMIFS(#REF!,#REF!,\"<\"&Таблица1[[#This Row],[Дл]],#REF!,\"=500\",#REF!,Таблица1[[#This Row],[Толщ]],#REF!,Таблица1[[#This Row],[АСТРА]])","v":{"$error":"#REF!"}},0.54,{"$f":"SUMIFS($I$8:$I$30,$F$8:$F$30,Таблица1[[#This Row],[Столбец5]])","v":0},{"$f":"Таблица1[[#This Row],[Столбец8]]+Таблица1[[#This Row],[Столбец9]]","v":{"$error":"#REF!"}},{"$f":"SUMIFS(#REF!,#REF!,Таблица1[[#This Row],[Дл]],#REF!,\"=500\",#REF!,Таблица1[[#This Row],[Толщ]],#REF!,Таблица1[[#This Row],[АСТРА]])","v":{"$error":"#REF!"}},{"$f":"SUMIFS(#REF!,#REF!,\"<\"&Таблица1[[#This Row],[Дл]],#REF!,\"=500\",#REF!,Таблица1[[#This Row],[Толщ]],#REF!,Таблица1[[#This Row],[АСТРА]])","v":{"$error":"#REF!"}},{"$f":"Таблица1[[#This Row],[Столбец13]]+Таблица1[[#This Row],[Столбец14]]","v":{"$error":"#REF!"}},{"$f":"Таблица1[[#This Row],[Столбец28]]+Таблица1[[#This Row],[Столбец29]]-Таблица1[[#This Row],[Столбец27]]","v":{"$error":"#REF!"}},{"$f":"SUMIFS(#REF!,#REF!,Таблица1[[#This Row],[Дл]],#REF!,\"=500\",#REF!,Таблица1[[#This Row],[Толщ]],#REF!,Таблица1[[#This Row],[АСТРА]])","v":{"$error":"#REF!"}},{"$f":"SUMIFS(#REF!,#REF!,\"<\"&Таблица1[[#This Row],[Дл]],#REF!,\"=500\",#REF!,Таблица1[[#This Row],[Толщ]],#REF!,Таблица1[[#This Row],[АСТРА]])","v":{"$error":"#REF!"}},{"$f":"Таблица1[[#This Row],[Столбец17]]+Таблица1[[#This Row],[Столбец18]]","v":{"$error":"#REF!"}},null,null,null,{"$f":"SUMIFS(#REF!,#REF!,Таблица1[[#This Row],[Дл]],#REF!,\"=500\",#REF!,Таблица1[[#This Row],[Толщ]],#REF!,Таблица1[[#This Row],[АСТРА]])","v":{"$error":"#REF!"}},{"$f":"SUMIFS(#REF!,#REF!,\"<\"&Таблица1[[#This Row],[Дл]],#REF!,\"=500\",#REF!,Таблица1[[#This Row],[Толщ]],#REF!,Таблица1[[#This Row],[АСТРА]])","v":{"$error":"#REF!"}},{"$f":"Таблица1[[#This Row],[Столбец23]]+Таблица1[[#This Row],[Столбец24]]","v":{"$error":"#REF!"}},{"$f":"Таблица1[[#This Row],[Столбец28]]+Таблица1[[#This Row],[Столбец29]]-Таблица1[[#This Row],[Столбец27]]","v":{"$error":"#REF!"}},{"$f":"Таблица1[[#This Row],[резы]]*Таблица1[[#This Row],[шир.рез]]/1000*Таблица1[[#This Row],[коэф]]/2","v":0},{"$f":"SUMIFS(#REF!,#REF!,Таблица1[[#This Row],[Дл]],#REF!,\"=500\",#REF!,Таблица1[[#This Row],[Толщ]],#REF!,Таблица1[[#This Row],[АСТРА]])","v":{"$error":"#REF!"}},{"$f":"SUMIFS(#REF!,#REF!,\"<\"&Таблица1[[#This Row],[Дл]],#REF!,\"=500\",#REF!,Таблица1[[#This Row],[Толщ]],#REF!,Таблица1[[#This Row],[АСТРА]])","v":{"$error":"#REF!"}},5,{"$f":"CONCATENATE(Таблица1[[#This Row],[слово]],\" \",Таблица1[[#This Row],[профиль]])","v":"Труба 10х10х1"},"Труба 10х10, 1.0 мм, тр1010","Труба","10х10х1","10х10",1,{"$f":"CONCATENATE(Таблица1[[#This Row],[слово]],\" \",Таблица1[[#This Row],[Столбец35]])","v":"Труба 10х10"}]
[{"$f":"IF(Таблица1[[#This Row],[Столбец19]]=0,\"z\",\"\")","v":{"$error":"#REF!"}},null,null,6000,{"$f":"Таблица1[[#This Row],[АСТРА]]","v":"Труба 20х20 чм, 1.0 мм"},{"$f":"Таблица1[[#This Row],[ГОСТ]]","v":"Труба 20х20х1"},1,{"$f":"SUMIFS(#REF!,#REF!,500,#REF!,Таблица1[[#This Row],[Дл]],#REF!,Таблица1[[#This Row],[Толщ]],#REF!,Таблица1[[#This Row],[АСТРА]])","v":{"$error":"#REF!"}},{"$f":"SUMIFS(#REF!,#REF!,Таблица1[[#This Row],[Дл]],#REF!,\"=500\",#REF!,Таблица1[[#This Row],[Толщ]],#REF!,Таблица1[[#This Row],[АСТРА]])","v":{"$error":"#REF!"}},{"$f":"SUMIFS(#REF!,#REF!,\"<\"&Таблица1[[#This Row],[Дл]],#REF!,\"=500\",#REF!,Таблица1[[#This Row],[Толщ]],#REF!,Таблица1[[#This Row],[АСТРА]])","v":{"$error":"#REF!"}},1.248,{"$f":"SUMIFS($I$8:$I$30,$F$8:$F$30,Таблица1[[#This Row],[Столбец5]])","v":0},{"$f":"Таблица1[[#This Row],[Столбец8]]+Таблица1[[#This Row],[Столбец9]]","v":{"$error":"#REF!"}},{"$f":"SUMIFS(#REF!,#REF!,Таблица1[[#This Row],[Дл]],#REF!,\"=500\",#REF!,Таблица1[[#This Row],[Толщ]],#REF!,Таблица1[[#This Row],[АСТРА]])","v":{"$error":"#REF!"}},{"$f":"SUMIFS(#REF!,#REF!,\"<\"&Таблица1[[#This Row],[Дл]],#REF!,\"=500\",#REF!,Таблица1[[#This Row],[Толщ]],#REF!,Таблица1[[#This Row],[АСТРА]])","v":{"$error":"#REF!"}},{"$f":"Таблица1[[#This Row],[Столбец13]]+Таблица1[[#This Row],[Столбец14]]","v":{"$error":"#REF!"}},{"$f":"Таблица1[[#This Row],[Столбец28]]+Таблица1[[#This Row],[Столбец29]]-Таблица1[[#This Row],[Столбец27]]","v":{"$error":"#REF!"}},{"$f":"SUMIFS(#REF!,#REF!,Таблица1[[#This Row],[Дл]],#REF!,\"=500\",#REF!,Таблица1[[#This Row],[Толщ]],#REF!,Таблица1[[#This Row],[АСТРА]])","v":{"$error":"#REF!"}},{"$f":"SUMIFS(#REF!,#REF!,\"<\"&Таблица1[[#This Row],[Дл]],#REF!,\"=500\",#REF!,Таблица1[[#This Row],[Толщ]],#REF!,Таблица1[[#This Row],[АСТРА]])","v":{"$error":"#REF!"}},{"$f":"Таблица1[[#This Row],[Столбец17]]+Таблица1[[#This Row],[Столбец18]]","v":{"$error":"#REF!"}},null,null,null,{"$f":"SUMIFS(#REF!,#REF!,Таблица1[[#This Row],[Дл]],#REF!,\"=500\",#REF!,Таблица1[[#This Row],[Толщ]],#REF!,Таблица1[[#This Row],[АСТРА]])","v":{"$error":"#REF!"}},{"$f":"SUMIFS(#REF!,#REF!,\"<\"&Таблица1[[#This Row],[Дл]],#REF!,\"=500\",#REF!,Таблица1[[#This Row],[Толщ]],#REF!,Таблица1[[#This Row],[АСТРА]])","v":{"$error":"#REF!"}},{"$f":"Таблица1[[#This Row],[Столбец23]]+Таблица1[[#This Row],[Столбец24]]","v":{"$error":"#REF!"}},{"$f":"Таблица1[[#This Row],[Столбец28]]+Таблица1[[#This Row],[Столбец29]]-Таблица1[[#This Row],[Столбец27]]","v":{"$error":"#REF!"}},{"$f":"Таблица1[[#This Row],[резы]]*Таблица1[[#This Row],[шир.рез]]/1000*Таблица1[[#This Row],[коэф]]/2","v":0},{"$f":"SUMIFS(#REF!,#REF!,Таблица1[[#This Row],[Дл]],#REF!,\"=500\",#REF!,Таблица1[[#This Row],[Толщ]],#REF!,Таблица1[[#This Row],[АСТРА]])","v":{"$error":"#REF!"}},{"$f":"SUMIFS(#REF!,#REF!,\"<\"&Таблица1[[#This Row],[Дл]],#REF!,\"=500\",#REF!,Таблица1[[#This Row],[Толщ]],#REF!,Таблица1[[#This Row],[АСТРА]])","v":{"$error":"#REF!"}},5,{"$f":"CONCATENATE(Таблица1[[#This Row],[слово]],\" \",Таблица1[[#This Row],[профиль]])","v":"Труба 20х20х1"},"Труба 20х20 чм, 1.0 мм","Труба","20х20х1","20х20",1,{"$f":"CONCATENATE(Таблица1[[#This Row],[слово]],\" \",Таблица1[[#This Row],[Столбец35]])","v":"Труба 20х20"}]
[{"$f":"IF(Таблица1[[#This Row],[Столбец19]]=0,\"z\",\"\")","v":{"$error":"#REF!"}},null,null,6000,{"$f":"Таблица1[[#This Row],[АСТРА]]","v":"Труба 20х20, 1.5 мм, ТР2020"},{"$f":"Таблица1[[#This Row],[ГОСТ]]","v":"Труба 20х20х1,5"},1.5,{"$f":"SUMIFS(#REF!,#REF!,500,#REF!,Таблица1[[#This Row],[Дл]],#REF!,Таблица1[[#This Row],[Толщ]],#REF!,Таблица1[[#This Row],[АСТРА]])","v":{"$error":"#REF!"}},{"$f":"SUMIFS(#REF!,#REF!,Таблица1[[#This Row],[Дл]],#REF!,\"=500\",#REF!,Таблица1[[#This Row],[Толщ]],#REF!,Таблица1[[#This Row],[АСТРА]])","v":{"$error":"#REF!"}},{"$f":"SUMIFS(#REF!,#REF!,\"<\"&Таблица1[[#This Row],[Дл]],#REF!,\"=500\",#REF!,Таблица1[[#This Row],[Толщ]],#REF!,Таблица1[[#This Row],[АСТРА]])","v":{"$error":"#REF!"}},1.8720000000000001,{"$f":"SUMIFS($I$8:$I$30,$F$8:$F$30,Таблица1[[#This Row],[Столбец5]])","v":0},{"$f":"Таблица1[[#This Row],[Столбец8]]+Таблица1[[#This Row],[Столбец9]]","v":{"$error":"#REF!"}},{"$f":"SUMIFS(#REF!,#REF!,Таблица1[[#This Row],[Дл]],#REF!,\"=500\",#REF!,Таблица1[[#This Row],[Толщ]],#REF!,Таблица1[[#This Row],[АСТРА]])","v":{"$error":"#REF!"}},{"$f":"SUMIFS(#REF!,#REF!,\"<\"&Таблица1[[#This Row],[Дл]],#REF!,\"=500\",#REF!,Таблица1[[#This Row],[Толщ]],#REF!,Таблица1[[#This Row],[АСТРА]])","v":{"$error":"#REF!"}},{"$f":"Таблица1[[#This Row],[Столбец13]]+Таблица1[[#This Row],[Столбец14]]","v":{"$error":"#REF!"}},{"$f":"Таблица1[[#This Row],[Столбец28]]+Таблица1[[#This Row],[Столбец29]]-Таблица1[[#This Row],[Столбец27]]","v":{"$error":"#REF!"}},{"$f":"SUMIFS(#REF!,#REF!,Таблица1[[#This Row],[Дл]],#REF!,\"=500\",#REF!,Таблица1[[#This Row],[Толщ]],#REF!,Таблица1[[#This Row],[АСТРА]])","v":{"$error":"#REF!"}},{"$f":"SUMIFS(#REF!,#REF!,\"<\"&Таблица1[[#This Row],[Дл]],#REF!,\"=500\",#REF!,Таблица1[[#This Row],[Толщ]],#REF!,Таблица1[[#This Row],[АСТРА]])","v":{"$error":"#REF!"}},{"$f":"Таблица1[[#This Row],[Столбец17]]+Таблица1[[#This Row],[Столбец18]]","v":{"$error":"#REF!"}},null,null,null,{"$f":"SUMIFS(#REF!,#REF!,Таблица1[[#This Row],[Дл]],#REF!,\"=500\",#REF!,Таблица1[[#This Row],[Толщ]],#REF!,Таблица1[[#This Row],[АСТРА]])","v":{"$error":"#REF!"}},{"$f":"SUMIFS(#REF!,#REF!,\"<\"&Таблица1[[#This Row],[Дл]],#REF!,\"=500\",#REF!,Таблица1[[#This Row],[Толщ]],#REF!,Таблица1[[#This Row],[АСТРА]])","v":{"$error":"#REF!"}},{"$f":"Таблица1[[#This Row],[Столбец23]]+Таблица1[[#This Row],[Столбец24]]","v":{"$error":"#REF!"}},{"$f":"Таблица1[[#This Row],[Столбец28]]+Таблица1[[#This Row],[Столбец29]]-Таблица1[[#This Row],[Столбец27]]","v":{"$error":"#REF!"}},{"$f":"Таблица1[[#This Row],[резы]]*Таблица1[[#This Row],[шир.рез]]/1000*Таблица1[[#This Row],[коэф]]/2","v":0},{"$f":"SUMIFS(#REF!,#REF!,Таблица1[[#This Row],[Дл]],#REF!,\"=500\",#REF!,Таблица1[[#This Row],[Толщ]],#REF!,Таблица1[[#This Row],[АСТРА]])","v":{"$error":"#REF!"}},{"$f":"SUMIFS(#REF!,#REF!,\"<\"&Таблица1[[#This Row],[Дл]],#REF!,\"=500\",#REF!,Таблица1[[#This Row],[Толщ]],#REF!,Таблица1[[#This Row],[АСТРА]])","v":{"$error":"#REF!"}},5,{"$f":"CONCATENATE(Таблица1[[#This Row],[слово]],\" \",Таблица1[[#This Row],[профиль]])","v":"Труба 20х20х1,5"},"Труба 20х20, 1.5 мм, ТР2020","Труба","20х20х1,5","20х20",1.5,{"$f":"CONCATENATE(Таблица1[[#This Row],[слово]],\" \",Таблица1[[#This Row],[Столбец35]])","v":"Труба 20х20"}]
[{"$f":"IF(Таблица1[[#This Row],[Столбец19]]=0,\"z\",\"\")","v":{"$error":"#REF!"}},8,null,6000,{"$f":"Таблица1[[#This Row],[АСТРА]]","v":"Труба 25, 1.5 мм, тр25"},{"$f":"Таблица1[[#This Row],[ГОСТ]]","v":"Труба 25х1,5"},1.5,{"$f":"SUMIFS(#REF!,#REF!,500,#REF!,Таблица1[[#This Row],[Дл]],#REF!,Таблица1[[#This Row],[Толщ]],#REF!,Таблица1[[#This Row],[АСТРА]])","v":{"$error":"#REF!"}},{"$f":"SUMIFS(#REF!,#REF!,Таблица1[[#This Row],[Дл]],#REF!,\"=500\",#REF!,Таблица1[[#This Row],[Толщ]],#REF!,Таблица1[[#This Row],[АСТРА]])","v":{"$error":"#REF!"}},{"$f":"SUMIFS(#REF!,#REF!,\"<\"&Таблица1[[#This Row],[Дл]],#REF!,\"=500\",#REF!,Таблица1[[#This Row],[Толщ]],#REF!,Таблица1[[#This Row],[АСТРА]])","v":{"$error":"#REF!"}},1.74,{"$f":"SUMIFS($I$8:$I$30,$F$8:$F$30,Таблица1[[#This Row],[Столбец5]])","v":0},{"$f":"Таблица1[[#This Row],[Столбец8]]+Таблица1[[#This Row],[Столбец9]]","v":{"$error":"#REF!"}},{"$f":"SUMIFS(#REF!,#REF!,Таблица1[[#This Row],[Дл]],#REF!,\"=500\",#REF!,Таблица1[[#This Row],[Толщ]],#REF!,Таблица1[[#This Row],[АСТРА]])","v":{"$error":"#REF!"}},{"$f":"SUMIFS(#REF!,#REF!,\"<\"&Таблица1[[#This Row],[Дл]],#REF!,\"=500\",#REF!,Таблица1[[#This Row],[Толщ]],#REF!,Таблица1[[#This Row],[АСТРА]])","v":{"$error":"#REF!"}},{"$f":"Таблица1[[#This Row],[Столбец13]]+Таблица1[[#This Row],[Столбец14]]","v":{"$error":"#REF!"}},{"$f":"Таблица1[[#This Row],[Столбец28]]+Таблица1[[#This Row],[Столбец29]]-Таблица1[[#This Row],[Столбец27]]","v":{"$error":"#REF!"}},{"$f":"SUMIFS(#REF!,#REF!,Таблица1[[#This Row],[Дл]],#REF!,\"=500\",#REF!,Таблица1[[#This Row],[Толщ]],#REF!,Таблица1[[#This Row],[АСТРА]])","v":{"$error":"#REF!"}},{"$f":"SUMIFS(#REF!,#REF!,\"<\"&Таблица1[[#This Row],[Дл]],#REF!,\"=500\",#REF!,Таблица1[[#This Row],[Толщ]],#REF!,Таблица1[[#This Row],[АСТРА]])","v":{"$error":"#REF!"}},{"$f":"Таблица1[[#This Row],[Столбец17]]+Таблица1[[#This Row],[Столбец18]]","v":{"$error":"#REF!"}},null,null,null,{"$f":"SUMIFS(#REF!,#REF!,Таблица1[[#This Row],[Дл]],#REF!,\"=500\",#REF!,Таблица1[[#This Row],[Толщ]],#REF!,Таблица1[[#This Row],[АСТРА]])","v":{"$error":"#REF!"}},{"$f":"SUMIFS(#REF!,#REF!,\"<\"&Таблица1[[#This Row],[Дл]],#REF!,\"=500\",#REF!,Таблица1[[#This Row],[Толщ]],#REF!,Таблица1[[#This Row],[АСТРА]])","v":{"$error":"#REF!"}},{"$f":"Таблица1[[#This Row],[Столбец23]]+Таблица1[[#This Row],[Столбец24]]","v":{"$error":"#REF!"}},{"$f":"Таблица1[[#This Row],[Столбец28]]+Таблица1[[#This Row],[Столбец29]]-Таблица1[[#This Row],[Столбец27]]","v":{"$error":"#REF!"}},{"$f":"Таблица1[[#This Row],[резы]]*Таблица1[[#This Row],[шир.рез]]/1000*Таблица1[[#This Row],[коэф]]/2","v":0},{"$f":"SUMIFS(#REF!,#REF!,Таблица1[[#This Row],[Дл]],#REF!,\"=500\",#REF!,Таблица1[[#This Row],[Толщ]],#REF!,Таблица1[[#This Row],[АСТРА]])","v":{"$error":"#REF!"}},{"$f":"SUMIFS(#REF!,#REF!,\"<\"&Таблица1[[#This Row],[Дл]],#REF!,\"=500\",#REF!,Таблица1[[#This Row],[Толщ]],#REF!,Таблица1[[#This Row],[АСТРА]])","v":{"$error":"#REF!"}},5,{"$f":"CONCATENATE(Таблица1[[#This Row],[слово]],\" \",Таблица1[[#This Row],[профиль]])","v":"Труба 25х1,5"},"Труба 25, 1.5 мм, тр25","Труба","25х1,5",25,1.5,{"$f":"CONCATENATE(Таблица1[[#This Row],[слово]],\" \",Таблица1[[#This Row],[Столбец35]])","v":"Труба 25"}]
[{"$f":"IF(Таблица1[[#This Row],[Столбец19]]=0,\"z\",\"\")","v":{"$error":"#REF!"}},1,null,6000,{"$f":"Таблица1[[#This Row],[АСТРА]]","v":"Труба 25х25 чм, 0.8 мм"},{"$f":"Таблица1[[#This Row],[ГОСТ]]","v":"Труба 25х25х0,8"},0.8,{"$f":"SUMIFS(#REF!,#REF!,500,#REF!,Таблица1[[#This Row],[Дл]],#REF!,Таблица1[[#This Row],[Толщ]],#REF!,Таблица1[[#This Row],[АСТРА]])","v":{"$error":"#REF!"}},{"$f":"SUMIFS(#REF!,#REF!,Таблица1[[#This Row],[Дл]],#REF!,\"=500\",#REF!,Таблица1[[#This Row],[Толщ]],#REF!,Таблица1[[#This Row],[АСТРА]])","v":{"$error":"#REF!"}},{"$f":"SUMIFS(#REF!,#REF!,\"<\"&Таблица1[[#This Row],[Дл]],#REF!,\"=500\",#REF!,Таблица1[[#This Row],[Толщ]],#REF!,Таблица1[[#This Row],[АСТРА]])","v":{"$error":"#REF!"}},1.2,{"$f":"SUMIFS($I$8:$I$30,$F$8:$F$30,Таблица1[[#This Row],[Столбец5]])","v":0},{"$f":"Таблица1[[#This Row],[Столбец8]]+Таблица1[[#This Row],[Столбец9]]","v":{"$error":"#REF!"}},{"$f":"SUMIFS(#REF!,#REF!,Таблица1[[#This Row],[Дл]],#REF!,\"=500\",#REF!,Таблица1[[#This Row],[Толщ]],#REF!,Таблица1[[#This Row],[АСТРА]])","v":{"$error":"#REF!"}},{"$f":"SUMIFS(#REF!,#REF!,\"<\"&Таблица1[[#This Row],[Дл]],#REF!,\"=500\",#REF!,Таблица1[[#This Row],[Толщ]],#REF!,Таблица1[[#This Row],[АСТРА]])","v":{"$error":"#REF!"}},{"$f":"Таблица1[[#This Row],[Столбец13]]+Таблица1[[#This Row],[Столбец14]]","v":{"$error":"#REF!"}},{"$f":"Таблица1[[#This Row],[Столбец28]]+Таблица1[[#This Row],[Столбец29]]-Таблица1[[#This Row],[Столбец27]]","v":{"$error":"#REF!"}},{"$f":"SUMIFS(#REF!,#REF!,Таблица1[[#This Row],[Дл]],#REF!,\"=500\",#REF!,Таблица1[[#This Row],[Толщ]],#REF!,Таблица1[[#This Row],[АСТРА]])","v":{"$error":"#REF!"}},{"$f":"SUMIFS(#REF!,#REF!,\"<\"&Таблица1[[#This Row],[Дл]],#REF!,\"=500\",#REF!,Таблица1[[#This Row],[Толщ]],#REF!,Таблица1[[#This Row],[АСТРА]])","v":{"$error":"#REF!"}},{"$f":"Таблица1[[#This Row],[Столбец17]]+Таблица1[[#This Row],[Столбец18]]","v":{"$error":"#REF!"}},null,null,null,{"$f":"SUMIFS(#REF!,#REF!,Таблица1[[#This Row],[Дл]],#REF!,\"=500\",#REF!,Таблица1[[#This Row],[Толщ]],#REF!,Таблица1[[#This Row],[АСТРА]])","v":{"$error":"#REF!"}},{"$f":"SUMIFS(#REF!,#REF!,\"<\"&Таблица1[[#This Row],[Дл]],#REF!,\"=500\",#REF!,Таблица1[[#This Row],[Толщ]],#REF!,Таблица1[[#This Row],[АСТРА]])","v":{"$error":"#REF!"}},{"$f":"Таблица1[[#This Row],[Столбец23]]+Таблица1[[#This Row],[Столбец24]]","v":{"$error":"#REF!"}},{"$f":"Таблица1[[#This Row],[Столбец28]]+Таблица1[[#This Row],[Столбец29]]-Таблица1[[#This Row],[Столбец27]]","v":{"$error":"#REF!"}},{"$f":"Таблица1[[#This Row],[резы]]*Таблица1[[#This Row],[шир.рез]]/1000*Таблица1[[#This Row],[коэф]]/2","v":0},{"$f":"SUMIFS(#REF!,#REF!,Таблица1[[#This Row],[Дл]],#REF!,\"=500\",#REF!,Таблица1[[#This Row],[Толщ]],#REF!,Таблица1[[#This Row],[АСТРА]])","v":{"$error":"#REF!"}},{"$f":"SUMIFS(#REF!,#REF!,\"<\"&Таблица1[[#This Row],[Дл]],#REF!,\"=500\",#REF!,Таблица1[[#This Row],[Толщ]],#REF!,Таблица1[[#This Row],[АСТРА]])","v":{"$error":"#REF!"}},5,{"$f":"CONCATENATE(Таблица1[[#This Row],[слово]],\" \",Таблица1[[#This Row],[профиль]])","v":"Труба 25х25х0,8"},"Труба 25х25 чм, 0.8 мм","Труба","25х25х0,8","25х25",0.8,{"$f":"CONCATENATE(Таблица1[[#This Row],[слово]],\" \",Таблица1[[#This Row],[Столбец35]])","v":"Труба 25х25"}]
[{"$f":"IF(Таблица1[[#This Row],[Столбец19]]=0,\"z\",\"\")","v":{"$error":"#REF!"}},2,null,6000,{"$f":"Таблица1[[#This Row],[АСТРА]]","v":"Труба 25х25 чм, 1.0 мм"},{"$f":"Таблица1[[#This Row],[ГОСТ]]","v":"Труба 25х25х1"},1,{"$f":"SUMIFS(#REF!,#REF!,500,#REF!,Таблица1[[#This Row],[Дл]],#REF!,Таблица1[[#This Row],[Толщ]],#REF!,Таблица1[[#This Row],[АСТРА]])","v":{"$error":"#REF!"}},{"$f":"SUMIFS(#REF!,#REF!,Таблица1[[#This Row],[Дл]],#REF!,\"=500\",#REF!,Таблица1[[#This Row],[Толщ]],#REF!,Таблица1[[#This Row],[АСТРА]])","v":{"$error":"#REF!"}},{"$f":"SUMIFS(#REF!,#REF!,\"<\"&Таблица1[[#This Row],[Дл]],#REF!,\"=500\",#REF!,Таблица1[[#This Row],[Толщ]],#REF!,Таблица1[[#This Row],[АСТРА]])","v":{"$error":"#REF!"}},1.48,{"$f":"SUMIFS($I$8:$I$30,$F$8:$F$30,Таблица1[[#This Row],[Столбец5]])","v":0},{"$f":"Таблица1[[#This Row],[Столбец8]]+Таблица1[[#This Row],[Столбец9]]","v":{"$error":"#REF!"}},{"$f":"SUMIFS(#REF!,#REF!,Таблица1[[#This Row],[Дл]],#REF!,\"=500\",#REF!,Таблица1[[#This Row],[Толщ]],#REF!,Таблица1[[#This Row],[АСТРА]])","v":{"$error":"#REF!"}},{"$f":"SUMIFS(#REF!,#REF!,\"<\"&Таблица1[[#This Row],[Дл]],#REF!,\"=500\",#REF!,Таблица1[[#This Row],[Толщ]],#REF!,Таблица1[[#This Row],[АСТРА]])","v":{"$error":"#REF!"}},{"$f":"Таблица1[[#This Row],[Столбец13]]+Таблица1[[#This Row],[Столбец14]]","v":{"$error":"#REF!"}},{"$f":"Таблица1[[#This Row],[Столбец28]]+Таблица1[[#This Row],[Столбец29]]-Таблица1[[#This Row],[Столбец27]]","v":{"$error":"#REF!"}},{"$f":"SUMIFS(#REF!,#REF!,Таблица1[[#This Row],[Дл]],#REF!,\"=500\",#REF!,Таблица1[[#This Row],[Толщ]],#REF!,Таблица1[[#This Row],[АСТРА]])","v":{"$error":"#REF!"}},{"$f":"SUMIFS(#REF!,#REF!,\"<\"&Таблица1[[#This Row],[Дл]],#REF!,\"=500\",#REF!,Таблица1[[#This Row],[Толщ]],#REF!,Таблица1[[#This Row],[АСТРА]])","v":{"$error":"#REF!"}},{"$f":"Таблица1[[#This Row],[Столбец17]]+Таблица1[[#This Row],[Столбец18]]","v":{"$error":"#REF!"}},null,null,null,{"$f":"SUMIFS(#REF!,#REF!,Таблица1[[#This Row],[Дл]],#REF!,\"=500\",#REF!,Таблица1[[#This Row],[Толщ]],#REF!,Таблица1[[#This Row],[АСТРА]])","v":{"$error":"#REF!"}},{"$f":"SUMIFS(#REF!,#REF!,\"<\"&Таблица1[[#This Row],[Дл]],#REF!,\"=500\",#REF!,Таблица1[[#This Row],[Толщ]],#REF!,Таблица1[[#This Row],[АСТРА]])","v":{"$error":"#REF!"}},{"$f":"Таблица1[[#This Row],[Столбец23]]+Таблица1[[#This Row],[Столбец24]]","v":{"$error":"#REF!"}},{"$f":"Таблица1[[#This Row],[Столбец28]]+Таблица1[[#This Row],[Столбец29]]-Таблица1[[#This Row],[Столбец27]]","v":{"$error":"#REF!"}},{"$f":"Таблица1[[#This Row],[резы]]*Таблица1[[#This Row],[шир.рез]]/1000*Таблица1[[#This Row],[коэф]]/2","v":0},{"$f":"SUMIFS(#REF!,#REF!,Таблица1[[#This Row],[Дл]],#REF!,\"=500\",#REF!,Таблица1[[#This Row],[Толщ]],#REF!,Таблица1[[#This Row],[АСТРА]])","v":{"$error":"#REF!"}},{"$f":"SUMIFS(#REF!,#REF!,\"<\"&Таблица1[[#This Row],[Дл]],#REF!,\"=500\",#REF!,Таблица1[[#This Row],[Толщ]],#REF!,Таблица1[[#This Row],[АСТРА]])","v":{"$error":"#REF!"}},5,{"$f":"CONCATENATE(Таблица1[[#This Row],[слово]],\" \",Таблица1[[#This Row],[профиль]])","v":"Труба 25х25х1"},"Труба 25х25 чм, 1.0 мм","Труба","25х25х1","25х25",1,{"$f":"CONCATENATE(Таблица1[[#This Row],[слово]],\" \",Таблица1[[#This Row],[Столбец35]])","v":"Труба 25х25"}]
[{"$f":"IF(Таблица1[[#This Row],[Столбец19]]=0,\"z\",\"\")","v":{"$error":"#REF!"}},3,null,6000,{"$f":"Таблица1[[#This Row],[АСТРА]]","v":"Труба 25х25 чм, 1.2 мм"},{"$f":"Таблица1[[#This Row],[ГОСТ]]","v":"Труба 25х25х1.2"},1.2,{"$f":"SUMIFS(#REF!,#REF!,500,#REF!,Таблица1[[#This Row],[Дл]],#REF!,Таблица1[[#This Row],[Толщ]],#REF!,Таблица1[[#This Row],[АСТРА]])","v":{"$error":"#REF!"}},{"$f":"SUMIFS(#REF!,#REF!,Таблица1[[#This Row],[Дл]],#REF!,\"=500\",#REF!,Таблица1[[#This Row],[Толщ]],#REF!,Таблица1[[#This Row],[АСТРА]])","v":{"$error":"#REF!"}},{"$f":"SUMIFS(#REF!,#REF!,\"<\"&Таблица1[[#This Row],[Дл]],#REF!,\"=500\",#REF!,Таблица1[[#This Row],[Толщ]],#REF!,Таблица1[[#This Row],[АСТРА]])","v":{"$error":"#REF!"}},1.75,{"$f":"SUMIFS($I$8:$I$30,$F$8:$F$30,Таблица1[[#This Row],[Столбец5]])","v":0},{"$f":"Таблица1[[#This Row],[Столбец8]]+Таблица1[[#This Row],[Столбец9]]","v":{"$error":"#REF!"}},{"$f":"SUMIFS(#REF!,#REF!,Таблица1[[#This Row],[Дл]],#REF!,\"=500\",#REF!,Таблица1[[#This Row],[Толщ]],#REF!,Таблица1[[#This Row],[АСТРА]])","v":{"$error":"#REF!"}},{"$f":"SUMIFS(#REF!,#REF!,\"<\"&Таблица1[[#This Row],[Дл]],#REF!,\"=500\",#REF!,Таблица1[[#This Row],[Толщ]],#REF!,Таблица1[[#This Row],[АСТРА]])","v":{"$error":"#REF!"}},{"$f":"Таблица1[[#This Row],[Столбец13]]+Таблица1[[#This Row],[Столбец14]]","v":{"$error":"#REF!"}},{"$f":"Таблица1[[#This Row],[Столбец28]]+Таблица1[[#This Row],[Столбец29]]-Таблица1[[#This Row],[Столбец27]]","v":{"$error":"#REF!"}},{"$f":"SUMIFS(#REF!,#REF!,Таблица1[[#This Row],[Дл]],#REF!,\"=500\",#REF!,Таблица1[[#This Row],[Толщ]],#REF!,Таблица1[[#This Row],[АСТРА]])","v":{"$error":"#REF!"}},{"$f":"SUMIFS(#REF!,#REF!,\"<\"&Таблица1[[#This Row],[Дл]],#REF!,\"=500\",#REF!,Таблица1[[#This Row],[Толщ]],#REF!,Таблица1[[#This Row],[АСТРА]])","v":{"$error":"#REF!"}},{"$f":"Таблица1[[#This Row],[Столбец17]]+Таблица1[[#This Row],[Столбец18]]","v":{"$error":"#REF!"}},null,null,null,{"$f":"SUMIFS(#REF!,#REF!,Таблица1[[#This Row],[Дл]],#REF!,\"=500\",#REF!,Таблица1[[#This Row],[Толщ]],#REF!,Таблица1[[#This Row],[АСТРА]])","v":{"$error":"#REF!"}},{"$f":"SUMIFS(#REF!,#REF!,\"<\"&Таблица1[[#This Row],[Дл]],#REF!,\"=500\",#REF!,Таблица1[[#This Row],[Толщ]],#REF!,Таблица1[[#This Row],[АСТРА]])","v":{"$error":"#REF!"}},{"$f":"Таблица1[[#This Row],[Столбец23]]+Таблица1[[#This Row],[Столбец24]]","v":{"$error":"#REF!"}},{"$f":"Таблица1[[#This Row],[Столбец28]]+Таблица1[[#This Row],[Столбец29]]-Таблица1[[#This Row],[Столбец27]]","v":{"$error":"#REF!"}},{"$f":"Таблица1[[#This Row],[резы]]*Таблица1[[#This Row],[шир.рез]]/1000*Таблица1[[#This Row],[коэф]]/2","v":0},{"$f":"SUMIFS(#REF!,#REF!,Таблица1[[#This Row],[Дл]],#REF!,\"=500\",#REF!,Таблица1[[#This Row],[Толщ]],#REF!,Таблица1[[#This Row],[АСТРА]])","v":{"$error":"#REF!"}},{"$f":"SUMIFS(#REF!,#REF!,\"<\"&Таблица1[[#This Row],[Дл]],#REF!,\"=500\",#REF!,Таблица1[[#This Row],[Толщ]],#REF!,Таблица1[[#This Row],[АСТРА]])","v":{"$error":"#REF!"}},5,{"$f":"CONCATENATE(Таблица1[[#This Row],[слово]],\" \",Таблица1[[#This Row],[профиль]])","v":"Труба 25х25х1.2"},"Труба 25х25 чм, 1.2 мм","Труба","25х25х1.2","25х25",1.2,{"$f":"CONCATENATE(Таблица1[[#This Row],[слово]],\" \",Таблица1[[#This Row],[Столбец35]])","v":"Труба 25х25"}]
[{"$f":"IF(Таблица1[[#This Row],[Столбец19]]=0,\"z\",\"\")","v":{"$error":"#REF!"}},null,null,6000,{"$f":"Таблица1[[#This Row],[АСТРА]]","v":"Труба 30х15, 1.5 мм, тр3015"},{"$f":"Таблица1[[#This Row],[ГОСТ]]","v":"Труба 30х15х1,5"},1.5,{"$f":"SUMIFS(#REF!,#REF!,500,#REF!,Таблица1[[#This Row],[Дл]],#REF!,Таблица1[[#This Row],[Толщ]],#REF!,Таблица1[[#This Row],[АСТРА]])","v":{"$error":"#REF!"}},{"$f":"SUMIFS(#REF!,#REF!,Таблица1[[#This Row],[Дл]],#REF!,\"=500\",#REF!,Таблица1[[#This Row],[Толщ]],#REF!,Таблица1[[#This Row],[АСТРА]])","v":{"$error":"#REF!"}},{"$f":"SUMIFS(#REF!,#REF!,\"<\"&Таблица1[[#This Row],[Дл]],#REF!,\"=500\",#REF!,Таблица1[[#This Row],[Толщ]],#REF!,Таблица1[[#This Row],[АСТРА]])","v":{"$error":"#REF!"}},1.92,{"$f":"SUMIFS($I$8:$I$30,$F$8:$F$30,Таблица1[[#This Row],[Столбец5]])","v":0},{"$f":"Таблица1[[#This Row],[Столбец8]]+Таблица1[[#This Row],[Столбец9]]","v":{"$error":"#REF!"}},{"$f":"SUMIFS(#REF!,#REF!,Таблица1[[#This Row],[Дл]],#REF!,\"=500\",#REF!,Таблица1[[#This Row],[Толщ]],#REF!,Таблица1[[#This Row],[АСТРА]])","v":{"$error":"#REF!"}},{"$f":"SUMIFS(#REF!,#REF!,\"<\"&Таблица1[[#This Row],[Дл]],#REF!,\"=500\",#REF!,Таблица1[[#This Row],[Толщ]],#REF!,Таблица1[[#This Row],[АСТРА]])","v":{"$error":"#REF!"}},{"$f":"Таблица1[[#This Row],[Столбец13]]+Таблица1[[#This Row],[Столбец14]]","v":{"$error":"#REF!"}},{"$f":"Таблица1[[#This Row],[Столбец28]]+Таблица1[[#This Row],[Столбец29]]-Таблица1[[#This Row],[Столбец27]]","v":{"$error":"#REF!"}},{"$f":"SUMIFS(#REF!,#REF!,Таблица1[[#This Row],[Дл]],#REF!,\"=500\",#REF!,Таблица1[[#This Row],[Толщ]],#REF!,Таблица1[[#This Row],[АСТРА]])","v":{"$error":"#REF!"}},{"$f":"SUMIFS(#REF!,#REF!,\"<\"&Таблица1[[#This Row],[Дл]],#REF!,\"=500\",#REF!,Таблица1[[#This Row],[Толщ]],#REF!,Таблица1[[#This Row],[АСТРА]])","v":{"$error":"#REF!"}},{"$f":"Таблица1[[#This Row],[Столбец17]]+Таблица1[[#This Row],[Столбец18]]","v":{"$error":"#REF!"}},null,null,null,{"$f":"SUMIFS(#REF!,#REF!,Таблица1[[#This Row],[Дл]],#REF!,\"=500\",#REF!,Таблица1[[#This Row],[Толщ]],#REF!,Таблица1[[#This Row],[АСТРА]])","v":{"$error":"#REF!"}},{"$f":"SUMIFS(#REF!,#REF!,\"<\"&Таблица1[[#This Row],[Дл]],#REF!,\"=500\",#REF!,Таблица1[[#This Row],[Толщ]],#REF!,Таблица1[[#This Row],[АСТРА]])","v":{"$error":"#REF!"}},{"$f":"Таблица1[[#This Row],[Столбец23]]+Таблица1[[#This Row],[Столбец24]]","v":{"$error":"#REF!"}},{"$f":"Таблица1[[#This Row],[Столбец28]]+Таблица1[[#This Row],[Столбец29]]-Таблица1[[#This Row],[Столбец27]]","v":{"$error":"#REF!"}},{"$f":"Таблица1[[#This Row],[резы]]*Таблица1[[#This Row],[шир.рез]]/1000*Таблица1[[#This Row],[коэф]]/2","v":0},{"$f":"SUMIFS(#REF!,#REF!,Таблица1[[#This Row],[Дл]],#REF!,\"=500\",#REF!,Таблица1[[#This Row],[Толщ]],#REF!,Таблица1[[#This Row],[АСТРА]])","v":{"$error":"#REF!"}},{"$f":"SUMIFS(#REF!,#REF!,\"<\"&Таблица1[[#This Row],[Дл]],#REF!,\"=500\",#REF!,Таблица1[[#This Row],[Толщ]],#REF!,Таблица1[[#This Row],[АСТРА]])","v":{"$error":"#REF!"}},5,{"$f":"CONCATENATE(Таблица1[[#This Row],[слово]],\" \",Таблица1[[#This Row],[профиль]])","v":"Труба 30х15х1,5"},"Труба 30х15, 1.5 мм, тр3015","Труба","30х15х1,5","30х15",1.5,{"$f":"CONCATENATE(Таблица1[[#This Row],[слово]],\" \",Таблица1[[#This Row],[Столбец35]])","v":"Труба 30х15"}]
[{"$f":"IF(Таблица1[[#This Row],[Столбец19]]=0,\"z\",\"\")","v":{"$error":"#REF!"}},4,null,6000,{"$f":"Таблица1[[#This Row],[АСТРА]]","v":"Труба 30х20, 1.2 мм, тр3020"},{"$f":"Таблица1[[#This Row],[ГОСТ]]","v":"Труба 30х20х1.2"},1.2,{"$f":"SUMIFS(#REF!,#REF!,500,#REF!,Таблица1[[#This Row],[Дл]],#REF!,Таблица1[[#This Row],[Толщ]],#REF!,Таблица1[[#This Row],[АСТРА]])","v":{"$error":"#REF!"}},{"$f":"SUMIFS(#REF!,#REF!,Таблица1[[#This Row],[Дл]],#REF!,\"=500\",#REF!,Таблица1[[#This Row],[Толщ]],#REF!,Таблица1[[#This Row],[АСТРА]])","v":{"$error":"#REF!"}},{"$f":"SUMIFS(#REF!,#REF!,\"<\"&Таблица1[[#This Row],[Дл]],#REF!,\"=500\",#REF!,Таблица1[[#This Row],[Толщ]],#REF!,Таблица1[[#This Row],[АСТРА]])","v":{"$error":"#REF!"}},1.76,{"$f":"SUMIFS($I$8:$I$30,$F$8:$F$30,Таблица1[[#This Row],[Столбец5]])","v":330},{"$f":"Таблица1[[#This Row],[Столбец8]]+Таблица1[[#This Row],[Столбец9]]","v":{"$error":"#REF!"}},{"$f":"SUMIFS(#REF!,#REF!,Таблица1[[#This Row],[Дл]],#REF!,\"=500\",#REF!,Таблица1[[#This Row],[Толщ]],#REF!,Таблица1[[#This Row],[АСТРА]])","v":{"$error":"#REF!"}},{"$f":"SUMIFS(#REF!,#REF!,\"<\"&Таблица1[[#This Row],[Дл]],#REF!,\"=500\",#REF!,Таблица1[[#This Row],[Толщ]],#REF!,Таблица1[[#This Row],[АСТРА]])","v":{"$error":"#REF!"}},{"$f":"Таблица1[[#This Row],[Столбец13]]+Таблица1[[#This Row],[Столбец14]]","v":{"$error":"#REF!"}},{"$f":"Таблица1[[#This Row],[Столбец28]]+Таблица1[[#This Row],[Столбец29]]-Таблица1[[#This Row],[Столбец27]]","v":{"$error":"#REF!"}},{"$f":"SUMIFS(#REF!,#REF!,Таблица1[[#This Row],[Дл]],#REF!,\"=500\",#REF!,Таблица1[[#This Row],[Толщ]],#REF!,Таблица1[[#This Row],[АСТРА]])","v":{"$error":"#REF!"}},{"$f":"SUMIFS(#REF!,#REF!,\"<\"&Таблица1[[#This Row],[Дл]],#REF!,\"=500\",#REF!,Таблица1[[#This Row],[Толщ]],#REF!,Таблица1[[#This Row],[АСТРА]])","v":{"$error":"#REF!"}},{"$f":"Таблица1[[#This Row],[Столбец17]]+Таблица1[[#This Row],[Столбец18]]","v":{"$error":"#REF!"}},null,null,null,{"$f":"SUMIFS(#REF!,#REF!,Таблица1[[#This Row],[Дл]],#REF!,\"=500\",#REF!,Таблица1[[#This Row],[Толщ]],#REF!,Таблица1[[#This Row],[АСТРА]])","v":{"$error":"#REF!"}},{"$f":"SUMIFS(#REF!,#REF!,\"<\"&Таблица1[[#This Row],[Дл]],#REF!,\"=500\",#REF!,Таблица1[[#This Row],[Толщ]],#REF!,Таблица1[[#This Row],[АСТРА]])","v":{"$error":"#REF!"}},{"$f":"Таблица1[[#This Row],[Столбец23]]+Таблица1[[#This Row],[Столбец24]]","v":{"$error":"#REF!"}},{"$f":"Таблица1[[#This Row],[Столбец28]]+Таблица1[[#This Row],[Столбец29]]-Таблица1[[#This Row],[Столбец27]]","v":{"$error":"#REF!"}},{"$f":"Таблица1[[#This Row],[резы]]*Таблица1[[#This Row],[шир.рез]]/1000*Таблица1[[#This Row],[коэф]]/2","v":1.452},{"$f":"SUMIFS(#REF!,#REF!,Таблица1[[#This Row],[Дл]],#REF!,\"=500\",#REF!,Таблица1[[#This Row],[Толщ]],#REF!,Таблица1[[#This Row],[АСТРА]])","v":{"$error":"#REF!"}},{"$f":"SUMIFS(#REF!,#REF!,\"<\"&Таблица1[[#This Row],[Дл]],#REF!,\"=500\",#REF!,Таблица1[[#This Row],[Толщ]],#REF!,Таблица1[[#This Row],[АСТРА]])","v":{"$error":"#REF!"}},5,{"$f":"CONCATENATE(Таблица1[[#This Row],[слово]],\" \",Таблица1[[#This Row],[профиль]])","v":"Труба 30х20х1.2"},"Труба 30х20, 1.2 мм, тр3020","Труба","30х20х1.2","30х20",1.2,{"$f":"CONCATENATE(Таблица1[[#This Row],[слово]],\" \",Таблица1[[#This Row],[Столбец35]])","v":"Труба 30х20"}]
[{"$f":"IF(Таблица1[[#This Row],[Столбец19]]=0,\"z\",\"\")","v":{"$error":"#REF!"}},null,null,6000,{"$f":"Таблица1[[#This Row],[АСТРА]]","v":"Труба 30х30, 2.0 мм, тр3030"},{"$f":"Таблица1[[#This Row],[ГОСТ]]","v":"Труба 30х30х2"},2,{"$f":"SUMIFS(#REF!,#REF!,500,#REF!,Таблица1[[#This Row],[Дл]],#REF!,Таблица1[[#This Row],[Толщ]],#REF!,Таблица1[[#This Row],[АСТРА]])","v":{"$error":"#REF!"}},{"$f":"SUMIFS(#REF!,#REF!,Таблица1[[#This Row],[Дл]],#REF!,\"=500\",#REF!,Таблица1[[#This Row],[Толщ]],#REF!,Таблица1[[#This Row],[АСТРА]])","v":{"$error":"#REF!"}},{"$f":"SUMIFS(#REF!,#REF!,\"<\"&Таблица1[[#This Row],[Дл]],#REF!,\"=500\",#REF!,Таблица1[[#This Row],[Толщ]],#REF!,Таблица1[[#This Row],[АСТРА]])","v":{"$error":"#REF!"}},3.4,{"$f":"SUMIFS($I$8:$I$30,$F$8:$F$30,Таблица1[[#This Row],[Столбец5]])","v":0},{"$f":"Таблица1[[#This Row],[Столбец8]]+Таблица1[[#This Row],[Столбец9]]","v":{"$error":"#REF!"}},{"$f":"SUMIFS(#REF!,#REF!,Таблица1[[#This Row],[Дл]],#REF!,\"=500\",#REF!,Таблица1[[#This Row],[Толщ]],#REF!,Таблица1[[#This Row],[АСТРА]])","v":{"$error":"#REF!"}},{"$f":"SUMIFS(#REF!,#REF!,\"<\"&Таблица1[[#This Row],[Дл]],#REF!,\"=500\",#REF!,Таблица1[[#This Row],[Толщ]],#REF!,Таблица1[[#This Row],[АСТРА]])","v":{"$error":"#REF!"}},{"$f":"Таблица1[[#This Row],[Столбец13]]+Таблица1[[#This Row],[Столбец14]]","v":{"$error":"#REF!"}},{"$f":"Таблица1[[#This Row],[Столбец28]]+Таблица1[[#This Row],[Столбец29]]-Таблица1[[#This Row],[Столбец27]]","v":{"$error":"#REF!"}},{"$f":"SUMIFS(#REF!,#REF!,Таблица1[[#This Row],[Дл]],#REF!,\"=500\",#REF!,Таблица1[[#This Row],[Толщ]],#REF!,Таблица1[[#This Row],[АСТРА]])","v":{"$error":"#REF!"}},{"$f":"SUMIFS(#REF!,#REF!,\"<\"&Таблица1[[#This Row],[Дл]],#REF!,\"=500\",#REF!,Таблица1[[#This Row],[Толщ]],#REF!,Таблица1[[#This Row],[АСТРА]])","v":{"$error":"#REF!"}},{"$f":"Таблица1[[#This Row],[Столбец17]]+Таблица1[[#This Row],[Столбец18]]","v":{"$error":"#REF!"}},null,null,null,{"$f":"SUMIFS(#REF!,#REF!,Таблица1[[#This Row],[Дл]],#REF!,\"=500\",#REF!,Таблица1[[#This Row],[Толщ]],#REF!,Таблица1[[#This Row],[АСТРА]])","v":{"$error":"#REF!"}},{"$f":"SUMIFS(#REF!,#REF!,\"<\"&Таблица1[[#This Row],[Дл]],#REF!,\"=500\",#REF!,Таблица1[[#This Row],[Толщ]],#REF!,Таблица1[[#This Row],[АСТРА]])","v":{"$error":"#REF!"}},{"$f":"Таблица1[[#This Row],[Столбец23]]+Таблица1[[#This Row],[Столбец24]]","v":{"$error":"#REF!"}},{"$f":"Таблица1[[#This Row],[Столбец28]]+Таблица1[[#This Row],[Столбец29]]-Таблица1[[#This Row],[Столбец27]]","v":{"$error":"#REF!"}},{"$f":"Таблица1[[#This Row],[резы]]*Таблица1[[#This Row],[шир.рез]]/1000*Таблица1[[#This Row],[коэф]]/2","v":0},{"$f":"SUMIFS(#REF!,#REF!,Таблица1[[#This Row],[Дл]],#REF!,\"=500\",#REF!,Таблица1[[#This Row],[Толщ]],#REF!,Таблица1[[#This Row],[АСТРА]])","v":{"$error":"#REF!"}},{"$f":"SUMIFS(#REF!,#REF!,\"<\"&Таблица1[[#This Row],[Дл]],#REF!,\"=500\",#REF!,Таблица1[[#This Row],[Толщ]],#REF!,Таблица1[[#This Row],[АСТРА]])","v":{"$error":"#REF!"}},5,{"$f":"CONCATENATE(Таблица1[[#This Row],[слово]],\" \",Таблица1[[#This Row],[профиль]])","v":"Труба 30х30х2"},"Труба 30х30, 2.0 мм, тр3030","Труба","30х30х2","30х30",2,{"$f":"CONCATENATE(Таблица1[[#This Row],[слово]],\" \",Таблица1[[#This Row],[Столбец35]])","v":"Труба 30х30"}]
[{"$f":"IF(Таблица1[[#This Row],[Столбец19]]=0,\"z\",\"\")","v":{"$error":"#REF!"}},7,null,6000,{"$f":"Таблица1[[#This Row],[АСТРА]]","v":"Труба 30х80, 2.0 мм, тр3080"},{"$f":"Таблица1[[#This Row],[ГОСТ]]","v":"Труба 30х80х2.0 "},2,{"$f":"SUMIFS(#REF!,#REF!,500,#REF!,Таблица1[[#This Row],[Дл]],#REF!,Таблица1[[#This Row],[Толщ]],#REF!,Таблица1[[#This Row],[АСТРА]])","v":{"$error":"#REF!"}},{"$f":"SUMIFS(#REF!,#REF!,Таблица1[[#This Row],[Дл]],#REF!,\"=500\",#REF!,Таблица1[[#This Row],[Толщ]],#REF!,Таблица1[[#This Row],[АСТРА]])","v":{"$error":"#REF!"}},{"$f":"SUMIFS(#REF!,#REF!,\"<\"&Таблица1[[#This Row],[Дл]],#REF!,\"=500\",#REF!,Таблица1[[#This Row],[Толщ]],#REF!,Таблица1[[#This Row],[АСТРА]])","v":{"$error":"#REF!"}},6.54,{"$f":"SUMIFS($I$8:$I$30,$F$8:$F$30,Таблица1[[#This Row],[Столбец5]])","v":0},{"$f":"Таблица1[[#This Row],[Столбец8]]+Таблица1[[#This Row],[Столбец9]]","v":{"$error":"#REF!"}},{"$f":"SUMIFS(#REF!,#REF!,Таблица1[[#This Row],[Дл]],#REF!,\"=500\",#REF!,Таблица1[[#This Row],[Толщ]],#REF!,Таблица1[[#This Row],[АСТРА]])","v":{"$error":"#REF!"}},{"$f":"SUMIFS(#REF!,#REF!,\"<\"&Таблица1[[#This Row],[Дл]],#REF!,\"=500\",#REF!,Таблица1[[#This Row],[Толщ]],#REF!,Таблица1[[#This Row],[АСТРА]])","v":{"$error":"#REF!"}},{"$f":"Таблица1[[#This Row],[Столбец13]]+Таблица1[[#This Row],[Столбец14]]","v":{"$error":"#REF!"}},{"$f":"Таблица1[[#This Row],[Столбец28]]+Таблица1[[#This Row],[Столбец29]]-Таблица1[[#This Row],[Столбец27]]","v":{"$error":"#REF!"}},{"$f":"SUMIFS(#REF!,#REF!,Таблица1[[#This Row],[Дл]],#REF!,\"=500\",#REF!,Таблица1[[#This Row],[Толщ]],#REF!,Таблица1[[#This Row],[АСТРА]])","v":{"$error":"#REF!"}},{"$f":"SUMIFS(#REF!,#REF!,\"<\"&Таблица1[[#This Row],[Дл]],#REF!,\"=500\",#REF!,Таблица1[[#This Row],[Толщ]],#REF!,Таблица1[[#This Row],[АСТРА]])","v":{"$error":"#REF!"}},{"$f":"Таблица1[[#This Row],[Столбец17]]+Таблица1[[#This Row],[Столбец18]]","v":{"$error":"#REF!"}},null,null,null,{"$f":"SUMIFS(#REF!,#REF!,Таблица1[[#This Row],[Дл]],#REF!,\"=500\",#REF!,Таблица1[[#This Row],[Толщ]],#REF!,Таблица1[[#This Row],[АСТРА]])","v":{"$error":"#REF!"}},{"$f":"SUMIFS(#REF!,#REF!,\"<\"&Таблица1[[#This Row],[Дл]],#REF!,\"=500\",#REF!,Таблица1[[#This Row],[Толщ]],#REF!,Таблица1[[#This Row],[АСТРА]])","v":{"$error":"#REF!"}},{"$f":"Таблица1[[#This Row],[Столбец23]]+Таблица1[[#This Row],[Столбец24]]","v":{"$error":"#REF!"}},{"$f":"Таблица1[[#This Row],[Столбец28]]+Таблица1[[#This Row],[Столбец29]]-Таблица1[[#This Row],[Столбец27]]","v":{"$error":"#REF!"}},{"$f":"Таблица1[[#This Row],[резы]]*Таблица1[[#This Row],[шир.рез]]/1000*Таблица1[[#This Row],[коэф]]/2","v":0},{"$f":"SUMIFS(#REF!,#REF!,Таблица1[[#This Row],[Дл]],#REF!,\"=500\",#REF!,Таблица1[[#This Row],[Толщ]],#REF!,Таблица1[[#This Row],[АСТРА]])","v":{"$error":"#REF!"}},{"$f":"SUMIFS(#REF!,#REF!,\"<\"&Таблица1[[#This Row],[Дл]],#REF!,\"=500\",#REF!,Таблица1[[#This Row],[Толщ]],#REF!,Таблица1[[#This Row],[АСТРА]])","v":{"$error":"#REF!"}},5,{"$f":"CONCATENATE(Таблица1[[#This Row],[слово]],\" \",Таблица1[[#This Row],[профиль]])","v":"Труба 30х80х2.0 "},"Труба 30х80, 2.0 мм, тр3080","Труба","30х80х2.0 ","30х80",2,{"$f":"CONCATENATE(Таблица1[[#This Row],[слово]],\" \",Таблица1[[#This Row],[Столбец35]])","v":"Труба 30х80"}]
[{"$f":"IF(Таблица1[[#This Row],[Столбец19]]=0,\"z\",\"\")","v":{"$error":"#REF!"}},null,null,6000,{"$f":"Таблица1[[#This Row],[АСТРА]]","v":"Труба 32.5, 3.0 мм, тр32.5"},{"$f":"Таблица1[[#This Row],[ГОСТ]]","v":"Труба 32,5х3"},3,{"$f":"SUMIFS(#REF!,#REF!,500,#REF!,Таблица1[[#This Row],[Дл]],#REF!,Таблица1[[#This Row],[Толщ]],#REF!,Таблица1[[#This Row],[АСТРА]])","v":{"$error":"#REF!"}},{"$f":"SUMIFS(#REF!,#REF!,Таблица1[[#This Row],[Дл]],#REF!,\"=500\",#REF!,Таблица1[[#This Row],[Толщ]],#REF!,Таблица1[[#This Row],[АСТРА]])","v":{"$error":"#REF!"}},{"$f":"SUMIFS(#REF!,#REF!,\"<\"&Таблица1[[#This Row],[Дл]],#REF!,\"=500\",#REF!,Таблица1[[#This Row],[Толщ]],#REF!,Таблица1[[#This Row],[АСТРА]])","v":{"$error":"#REF!"}},4.3159999999999998,{"$f":"SUMIFS($I$8:$I$30,$F$8:$F$30,Таблица1[[#This Row],[Столбец5]])","v":0},{"$f":"Таблица1[[#This Row],[Столбец8]]+Таблица1[[#This Row],[Столбец9]]","v":{"$error":"#REF!"}},{"$f":"SUMIFS(#REF!,#REF!,Таблица1[[#This Row],[Дл]],#REF!,\"=500\",#REF!,Таблица1[[#This Row],[Толщ]],#REF!,Таблица1[[#This Row],[АСТРА]])","v":{"$error":"#REF!"}},{"$f":"SUMIFS(#REF!,#REF!,\"<\"&Таблица1[[#This Row],[Дл]],#REF!,\"=500\",#REF!,Таблица1[[#This Row],[Толщ]],#REF!,Таблица1[[#This Row],[АСТРА]])","v":{"$error":"#REF!"}},{"$f":"Таблица1[[#This Row],[Столбец13]]+Таблица1[[#This Row],[Столбец14]]","v":{"$error":"#REF!"}},{"$f":"Таблица1[[#This Row],[Столбец28]]+Таблица1[[#This Row],[Столбец29]]-Таблица1[[#This Row],[Столбец27]]","v":{"$error":"#REF!"}},{"$f":"SUMIFS(#REF!,#REF!,Таблица1[[#This Row],[Дл]],#REF!,\"=500\",#REF!,Таблица1[[#This Row],[Толщ]],#REF!,Таблица1[[#This Row],[АСТРА]])","v":{"$error":"#REF!"}},{"$f":"SUMIFS(#REF!,#REF!,\"<\"&Таблица1[[#This Row],[Дл]],#REF!,\"=500\",#REF!,Таблица1[[#This Row],[Толщ]],#REF!,Таблица1[[#This Row],[АСТРА]])","v":{"$error":"#REF!"}},{"$f":"Таблица1[[#This Row],[Столбец17]]+Таблица1[[#This Row],[Столбец18]]","v":{"$error":"#REF!"}},null,null,null,{"$f":"SUMIFS(#REF!,#REF!,Таблица1[[#This Row],[Дл]],#REF!,\"=500\",#REF!,Таблица1[[#This Row],[Толщ]],#REF!,Таблица1[[#This Row],[АСТРА]])","v":{"$error":"#REF!"}},{"$f":"SUMIFS(#REF!,#REF!,\"<\"&Таблица1[[#This Row],[Дл]],#REF!,\"=500\",#REF!,Таблица1[[#This Row],[Толщ]],#REF!,Таблица1[[#This Row],[АСТРА]])","v":{"$error":"#REF!"}},{"$f":"Таблица1[[#This Row],[Столбец23]]+Таблица1[[#This Row],[Столбец24]]","v":{"$error":"#REF!"}},{"$f":"Таблица1[[#This Row],[Столбец28]]+Таблица1[[#This Row],[Столбец29]]-Таблица1[[#This Row],[Столбец27]]","v":{"$error":"#REF!"}},{"$f":"Таблица1[[#This Row],[резы]]*Таблица1[[#This Row],[шир.рез]]/1000*Таблица1[[#This Row],[коэф]]/2","v":0},{"$f":"SUMIFS(#REF!,#REF!,Таблица1[[#This Row],[Дл]],#REF!,\"=500\",#REF!,Таблица1[[#This Row],[Толщ]],#REF!,Таблица1[[#This Row],[АСТРА]])","v":{"$error":"#REF!"}},{"$f":"SUMIFS(#REF!,#REF!,\"<\"&Таблица1[[#This Row],[Дл]],#REF!,\"=500\",#REF!,Таблица1[[#This Row],[Толщ]],#REF!,Таблица1[[#This Row],[АСТРА]])","v":{"$error":"#REF!"}},5,{"$f":"CONCATENATE(Таблица1[[#This Row],[слово]],\" \",Таблица1[[#This Row],[профиль]])","v":"Труба 32,5х3"},"Труба 32.5, 3.0 мм, тр32.5","Труба","32,5х3",32,3,{"$f":"CONCATENATE(Таблица1[[#This Row],[слово]],\" \",Таблица1[[#This Row],[Столбец35]])","v":"Труба 32"}]
[{"$f":"IF(Таблица1[[#This Row],[Столбец19]]=0,\"z\",\"\")","v":{"$error":"#REF!"}},9,null,6000,{"$f":"Таблица1[[#This Row],[АСТРА]]","v":"Труба 40х20, 1.0 мм, тр4020"},{"$f":"Таблица1[[#This Row],[ГОСТ]]","v":"Труба 40х20х1"},1,{"$f":"SUMIFS(#REF!,#REF!,500,#REF!,Таблица1[[#This Row],[Дл]],#REF!,Таблица1[[#This Row],[Толщ]],#REF!,Таблица1[[#This Row],[АСТРА]])","v":{"$error":"#REF!"}},{"$f":"SUMIFS(#REF!,#REF!,Таблица1[[#This Row],[Дл]],#REF!,\"=500\",#REF!,Таблица1[[#This Row],[Толщ]],#REF!,Таблица1[[#This Row],[АСТРА]])","v":{"$error":"#REF!"}},{"$f":"SUMIFS(#REF!,#REF!,\"<\"&Таблица1[[#This Row],[Дл]],#REF!,\"=500\",#REF!,Таблица1[[#This Row],[Толщ]],#REF!,Таблица1[[#This Row],[АСТРА]])","v":{"$error":"#REF!"}},1.8839999999999999,{"$f":"SUMIFS($I$8:$I$30,$F$8:$F$30,Таблица1[[#This Row],[Столбец5]])","v":0},{"$f":"Таблица1[[#This Row],[Столбец8]]+Таблица1[[#This Row],[Столбец9]]","v":{"$error":"#REF!"}},{"$f":"SUMIFS(#REF!,#REF!,Таблица1[[#This Row],[Дл]],#REF!,\"=500\",#REF!,Таблица1[[#This Row],[Толщ]],#REF!,Таблица1[[#This Row],[АСТРА]])","v":{"$error":"#REF!"}},{"$f":"SUMIFS(#REF!,#REF!,\"<\"&Таблица1[[#This Row],[Дл]],#REF!,\"=500\",#REF!,Таблица1[[#This Row],[Толщ]],#REF!,Таблица1[[#This Row],[АСТРА]])","v":{"$error":"#REF!"}},{"$f":"Таблица1[[#This Row],[Столбец13]]+Таблица1[[#This Row],[Столбец14]]","v":{"$error":"#REF!"}},{"$f":"Таблица1[[#This Row],[Столбец28]]+Таблица1[[#This Row],[Столбец29]]-Таблица1[[#This Row],[Столбец27]]","v":{"$error":"#REF!"}},{"$f":"SUMIFS(#REF!,#REF!,Таблица1[[#This Row],[Дл]],#REF!,\"=500\",#REF!,Таблица1[[#This Row],[Толщ]],#REF!,Таблица1[[#This Row],[АСТРА]])","v":{"$error":"#REF!"}},{"$f":"SUMIFS(#REF!,#REF!,\"<\"&Таблица1[[#This Row],[Дл]],#REF!,\"=500\",#REF!,Таблица1[[#This Row],[Толщ]],#REF!,Таблица1[[#This Row],[АСТРА]])","v":{"$error":"#REF!"}},{"$f":"Таблица1[[#This Row],[Столбец17]]+Таблица1[[#This Row],[Столбец18]]","v":{"$error":"#REF!"}},null,null,null,{"$f":"SUMIFS(#REF!,#REF!,Таблица1[[#This Row],[Дл]],#REF!,\"=500\",#REF!,Таблица1[[#This Row],[Толщ]],#REF!,Таблица1[[#This Row],[АСТРА]])","v":{"$error":"#REF!"}},{"$f":"SUMIFS(#REF!,#REF!,\"<\"&Таблица1[[#This Row],[Дл]],#REF!,\"=500\",#REF!,Таблица1[[#This Row],[Толщ]],#REF!,Таблица1[[#This Row],[АСТРА]])","v":{"$error":"#REF!"}},{"$f":"Таблица1[[#This Row],[Столбец23]]+Таблица1[[#This Row],[Столбец24]]","v":{"$error":"#REF!"}},{"$f":"Таблица1[[#This Row],[Столбец28]]+Таблица1[[#This Row],[Столбец29]]-Таблица1[[#This Row],[Столбец27]]","v":{"$error":"#REF!"}},{"$f":"Таблица1[[#This Row],[резы]]*Таблица1[[#This Row],[шир.рез]]/1000*Таблица1[[#This Row],[коэф]]/2","v":0},{"$f":"SUMIFS(#REF!,#REF!,Таблица1[[#This Row],[Дл]],#REF!,\"=500\",#REF!,Таблица1[[#This Row],[Толщ]],#REF!,Таблица1[[#This Row],[АСТРА]])","v":{"$error":"#REF!"}},{"$f":"SUMIFS(#REF!,#REF!,\"<\"&Таблица1[[#This Row],[Дл]],#REF!,\"=500\",#REF!,Таблица1[[#This Row],[Толщ]],#REF!,Таблица1[[#This Row],[АСТРА]])","v":{"$error":"#REF!"}},5,{"$f":"CONCATENATE(Таблица1[[#This Row],[слово]],\" \",Таблица1[[#This Row],[профиль]])","v":"Труба 40х20х1"},"Труба 40х20, 1.0 мм, тр4020","Труба","40х20х1","40х20",1,{"$f":"CONCATENATE(Таблица1[[#This Row],[слово]],\" \",Таблица1[[#This Row],[Столбец35]])","v":"Труба 40х20"}]
[{"$f":"IF(Таблица1[[#This Row],[Столбец19]]=0,\"z\",\"\")","v":{"$error":"#REF!"}},5,null,6000,{"$f":"Таблица1[[#This Row],[АСТРА]]","v":"Труба 40х20, 1.2 мм, тр4020"},{"$f":"Таблица1[[#This Row],[ГОСТ]]","v":"Труба 40х20х1.2"},1.2,{"$f":"SUMIFS(#REF!,#REF!,500,#REF!,Таблица1[[#This Row],[Дл]],#REF!,Таблица1[[#This Row],[Толщ]],#REF!,Таблица1[[#This Row],[АСТРА]])","v":{"$error":"#REF!"}},{"$f":"SUMIFS(#REF!,#REF!,Таблица1[[#This Row],[Дл]],#REF!,\"=500\",#REF!,Таблица1[[#This Row],[Толщ]],#REF!,Таблица1[[#This Row],[АСТРА]])","v":{"$error":"#REF!"}},{"$f":"SUMIFS(#REF!,#REF!,\"<\"&Таблица1[[#This Row],[Дл]],#REF!,\"=500\",#REF!,Таблица1[[#This Row],[Толщ]],#REF!,Таблица1[[#This Row],[АСТРА]])","v":{"$error":"#REF!"}},2.14,{"$f":"SUMIFS($I$8:$I$30,$F$8:$F$30,Таблица1[[#This Row],[Столбец5]])","v":220},{"$f":"Таблица1[[#This Row],[Столбец8]]+Таблица1[[#This Row],[Столбец9]]","v":{"$error":"#REF!"}},{"$f":"SUMIFS(#REF!,#REF!,Таблица1[[#This Row],[Дл]],#REF!,\"=500\",#REF!,Таблица1[[#This Row],[Толщ]],#REF!,Таблица1[[#This Row],[АСТРА]])","v":{"$error":"#REF!"}},{"$f":"SUMIFS(#REF!,#REF!,\"<\"&Таблица1[[#This Row],[Дл]],#REF!,\"=500\",#REF!,Таблица1[[#This Row],[Толщ]],#REF!,Таблица1[[#This Row],[АСТРА]])","v":{"$error":"#REF!"}},{"$f":"Таблица1[[#This Row],[Столбец13]]+Таблица1[[#This Row],[Столбец14]]","v":{"$error":"#REF!"}},{"$f":"Таблица1[[#This Row],[Столбец28]]+Таблица1[[#This Row],[Столбец29]]-Таблица1[[#This Row],[Столбец27]]","v":{"$error":"#REF!"}},{"$f":"SUMIFS(#REF!,#REF!,Таблица1[[#This Row],[Дл]],#REF!,\"=500\",#REF!,Таблица1[[#This Row],[Толщ]],#REF!,Таблица1[[#This Row],[АСТРА]])","v":{"$error":"#REF!"}},{"$f":"SUMIFS(#REF!,#REF!,\"<\"&Таблица1[[#This Row],[Дл]],#REF!,\"=500\",#REF!,Таблица1[[#This Row],[Толщ]],#REF!,Таблица1[[#This Row],[АСТРА]])","v":{"$error":"#REF!"}},{"$f":"Таблица1[[#This Row],[Столбец17]]+Таблица1[[#This Row],[Столбец18]]","v":{"$error":"#REF!"}},null,null,null,{"$f":"SUMIFS(#REF!,#REF!,Таблица1[[#This Row],[Дл]],#REF!,\"=500\",#REF!,Таблица1[[#This Row],[Толщ]],#REF!,Таблица1[[#This Row],[АСТРА]])","v":{"$error":"#REF!"}},{"$f":"SUMIFS(#REF!,#REF!,\"<\"&Таблица1[[#This Row],[Дл]],#REF!,\"=500\",#REF!,Таблица1[[#This Row],[Толщ]],#REF!,Таблица1[[#This Row],[АСТРА]])","v":{"$error":"#REF!"}},{"$f":"Таблица1[[#This Row],[Столбец23]]+Таблица1[[#This Row],[Столбец24]]","v":{"$error":"#REF!"}},{"$f":"Таблица1[[#This Row],[Столбец28]]+Таблица1[[#This Row],[Столбец29]]-Таблица1[[#This Row],[Столбец27]]","v":{"$error":"#REF!"}},{"$f":"Таблица1[[#This Row],[резы]]*Таблица1[[#This Row],[шир.рез]]/1000*Таблица1[[#This Row],[коэф]]/2","v":1.1770000000000003},{"$f":"SUMIFS(#REF!,#REF!,Таблица1[[#This Row],[Дл]],#REF!,\"=500\",#REF!,Таблица1[[#This Row],[Толщ]],#REF!,Таблица1[[#This Row],[АСТРА]])","v":{"$error":"#REF!"}},{"$f":"SUMIFS(#REF!,#REF!,\"<\"&Таблица1[[#This Row],[Дл]],#REF!,\"=500\",#REF!,Таблица1[[#This Row],[Толщ]],#REF!,Таблица1[[#This Row],[АСТРА]])","v":{"$error":"#REF!"}},5,{"$f":"CONCATENATE(Таблица1[[#This Row],[слово]],\" \",Таблица1[[#This Row],[профиль]])","v":"Труба 40х20х1.2"},"Труба 40х20, 1.2 мм, тр4020","Труба","40х20х1.2","40х20",1.2,{"$f":"CONCATENATE(Таблица1[[#This Row],[слово]],\" \",Таблица1[[#This Row],[Столбец35]])","v":"Труба 40х20"}]
[{"$f":"IF(Таблица1[[#This Row],[Столбец19]]=0,\"z\",\"\")","v":{"$error":"#REF!"}},null,null,6000,{"$f":"Таблица1[[#This Row],[АСТРА]]","v":"Труба 60х30, 2.0 мм, тр6030"},{"$f":"Таблица1[[#This Row],[ГОСТ]]","v":"Труба 60х30х2"},2,{"$f":"SUMIFS(#REF!,#REF!,500,#REF!,Таблица1[[#This Row],[Дл]],#REF!,Таблица1[[#This Row],[Толщ]],#REF!,Таблица1[[#This Row],[АСТРА]])","v":{"$error":"#REF!"}},{"$f":"SUMIFS(#REF!,#REF!,Таблица1[[#This Row],[Дл]],#REF!,\"=500\",#REF!,Таблица1[[#This Row],[Толщ]],#REF!,Таблица1[[#This Row],[АСТРА]])","v":{"$error":"#REF!"}},{"$f":"SUMIFS(#REF!,#REF!,\"<\"&Таблица1[[#This Row],[Дл]],#REF!,\"=500\",#REF!,Таблица1[[#This Row],[Толщ]],#REF!,Таблица1[[#This Row],[АСТРА]])","v":{"$error":"#REF!"}},5.3,{"$f":"SUMIFS($I$8:$I$30,$F$8:$F$30,Таблица1[[#This Row],[Столбец5]])","v":0},{"$f":"Таблица1[[#This Row],[Столбец8]]+Таблица1[[#This Row],[Столбец9]]","v":{"$error":"#REF!"}},{"$f":"SUMIFS(#REF!,#REF!,Таблица1[[#This Row],[Дл]],#REF!,\"=500\",#REF!,Таблица1[[#This Row],[Толщ]],#REF!,Таблица1[[#This Row],[АСТРА]])","v":{"$error":"#REF!"}},{"$f":"SUMIFS(#REF!,#REF!,\"<\"&Таблица1[[#This Row],[Дл]],#REF!,\"=500\",#REF!,Таблица1[[#This Row],[Толщ]],#REF!,Таблица1[[#This Row],[АСТРА]])","v":{"$error":"#REF!"}},{"$f":"Таблица1[[#This Row],[Столбец13]]+Таблица1[[#This Row],[Столбец14]]","v":{"$error":"#REF!"}},{"$f":"Таблица1[[#This Row],[Столбец28]]+Таблица1[[#This Row],[Столбец29]]-Таблица1[[#This Row],[Столбец27]]","v":{"$error":"#REF!"}},{"$f":"SUMIFS(#REF!,#REF!,Таблица1[[#This Row],[Дл]],#REF!,\"=500\",#REF!,Таблица1[[#This Row],[Толщ]],#REF!,Таблица1[[#This Row],[АСТРА]])","v":{"$error":"#REF!"}},{"$f":"SUMIFS(#REF!,#REF!,\"<\"&Таблица1[[#This Row],[Дл]],#REF!,\"=500\",#REF!,Таблица1[[#This Row],[Толщ]],#REF!,Таблица1[[#This Row],[АСТРА]])","v":{"$error":"#REF!"}},{"$f":"Таблица1[[#This Row],[Столбец17]]+Таблица1[[#This Row],[Столбец18]]","v":{"$error":"#REF!"}},null,null,null,{"$f":"SUMIFS(#REF!,#REF!,Таблица1[[#This Row],[Дл]],#REF!,\"=500\",#REF!,Таблица1[[#This Row],[Толщ]],#REF!,Таблица1[[#This Row],[АСТРА]])","v":{"$error":"#REF!"}},{"$f":"SUMIFS(#REF!,#REF!,\"<\"&Таблица1[[#This Row],[Дл]],#REF!,\"=500\",#REF!,Таблица1[[#This Row],[Толщ]],#REF!,Таблица1[[#This Row],[АСТРА]])","v":{"$error":"#REF!"}},{"$f":"Таблица1[[#This Row],[Столбец23]]+Таблица1[[#This Row],[Столбец24]]","v":{"$error":"#REF!"}},{"$f":"Таблица1[[#This Row],[Столбец28]]+Таблица1[[#This Row],[Столбец29]]-Таблица1[[#This Row],[Столбец27]]","v":{"$error":"#REF!"}},{"$f":"Таблица1[[#This Row],[резы]]*Таблица1[[#This Row],[шир.рез]]/1000*Таблица1[[#This Row],[коэф]]/2","v":0},{"$f":"SUMIFS(#REF!,#REF!,Таблица1[[#This Row],[Дл]],#REF!,\"=500\",#REF!,Таблица1[[#This Row],[Толщ]],#REF!,Таблица1[[#This Row],[АСТРА]])","v":{"$error":"#REF!"}},{"$f":"SUMIFS(#REF!,#REF!,\"<\"&Таблица1[[#This Row],[Дл]],#REF!,\"=500\",#REF!,Таблица1[[#This Row],[Толщ]],#REF!,Таблица1[[#This Row],[АСТРА]])","v":{"$error":"#REF!"}},5,{"$f":"CONCATENATE(Таблица1[[#This Row],[слово]],\" \",Таблица1[[#This Row],[профиль]])","v":"Труба 60х30х2"},"Труба 60х30, 2.0 мм, тр6030","Труба","60х30х2","60х30",2,{"$f":"CONCATENATE(Таблица1[[#This Row],[слово]],\" \",Таблица1[[#This Row],[Столбец35]])","v":"Труба 60х30"}]
[{"$f":"IF(Таблица1[[#This Row],[Столбец19]]=0,\"z\",\"\")","v":{"$error":"#REF!"}},null,null,6000,{"$f":"Таблица1[[#This Row],[АСТРА]]","v":"Труба плоскоовальная 30х15, 1.2 мм, трпл-ов3015"},{"$f":"Таблица1[[#This Row],[ГОСТ]]","v":"Труба пл.ов. 30х15х1,2"},1.2,{"$f":"SUMIFS(#REF!,#REF!,500,#REF!,Таблица1[[#This Row],[Дл]],#REF!,Таблица1[[#This Row],[Толщ]],#REF!,Таблица1[[#This Row],[АСТРА]])","v":{"$error":"#REF!"}},{"$f":"SUMIFS(#REF!,#REF!,Таблица1[[#This Row],[Дл]],#REF!,\"=500\",#REF!,Таблица1[[#This Row],[Толщ]],#REF!,Таблица1[[#This Row],[АСТРА]])","v":{"$error":"#REF!"}},{"$f":"SUMIFS(#REF!,#REF!,\"<\"&Таблица1[[#This Row],[Дл]],#REF!,\"=500\",#REF!,Таблица1[[#This Row],[Толщ]],#REF!,Таблица1[[#This Row],[АСТРА]])","v":{"$error":"#REF!"}},1.4,{"$f":"SUMIFS($I$8:$I$30,$F$8:$F$30,Таблица1[[#This Row],[Столбец5]])","v":0},{"$f":"Таблица1[[#This Row],[Столбец8]]+Таблица1[[#This Row],[Столбец9]]","v":{"$error":"#REF!"}},{"$f":"SUMIFS(#REF!,#REF!,Таблица1[[#This Row],[Дл]],#REF!,\"=500\",#REF!,Таблица1[[#This Row],[Толщ]],#REF!,Таблица1[[#This Row],[АСТРА]])","v":{"$error":"#REF!"}},{"$f":"SUMIFS(#REF!,#REF!,\"<\"&Таблица1[[#This Row],[Дл]],#REF!,\"=500\",#REF!,Таблица1[[#This Row],[Толщ]],#REF!,Таблица1[[#This Row],[АСТРА]])","v":{"$error":"#REF!"}},{"$f":"Таблица1[[#This Row],[Столбец13]]+Таблица1[[#This Row],[Столбец14]]","v":{"$error":"#REF!"}},{"$f":"Таблица1[[#This Row],[Столбец28]]+Таблица1[[#This Row],[Столбец29]]-Таблица1[[#This Row],[Столбец27]]","v":{"$error":"#REF!"}},{"$f":"SUMIFS(#REF!,#REF!,Таблица1[[#This Row],[Дл]],#REF!,\"=500\",#REF!,Таблица1[[#This Row],[Толщ]],#REF!,Таблица1[[#This Row],[АСТРА]])","v":{"$error":"#REF!"}},{"$f":"SUMIFS(#REF!,#REF!,\"<\"&Таблица1[[#This Row],[Дл]],#REF!,\"=500\",#REF!,Таблица1[[#This Row],[Толщ]],#REF!,Таблица1[[#This Row],[АСТРА]])","v":{"$error":"#REF!"}},{"$f":"Таблица1[[#This Row],[Столбец17]]+Таблица1[[#This Row],[Столбец18]]","v":{"$error":"#REF!"}},null,null,null,{"$f":"SUMIFS(#REF!,#REF!,Таблица1[[#This Row],[Дл]],#REF!,\"=500\",#REF!,Таблица1[[#This Row],[Толщ]],#REF!,Таблица1[[#This Row],[АСТРА]])","v":{"$error":"#REF!"}},{"$f":"SUMIFS(#REF!,#REF!,\"<\"&Таблица1[[#This Row],[Дл]],#REF!,\"=500\",#REF!,Таблица1[[#This Row],[Толщ]],#REF!,Таблица1[[#This Row],[АСТРА]])","v":{"$error":"#REF!"}},{"$f":"Таблица1[[#This Row],[Столбец23]]+Таблица1[[#This Row],[Столбец24]]","v":{"$error":"#REF!"}},{"$f":"Таблица1[[#This Row],[Столбец28]]+Таблица1[[#This Row],[Столбец29]]-Таблица1[[#This Row],[Столбец27]]","v":{"$error":"#REF!"}},{"$f":"Таблица1[[#This Row],[резы]]*Таблица1[[#This Row],[шир.рез]]/1000*Таблица1[[#This Row],[коэф]]/2","v":0},{"$f":"SUMIFS(#REF!,#REF!,Таблица1[[#This Row],[Дл]],#REF!,\"=500\",#REF!,Таблица1[[#This Row],[Толщ]],#REF!,Таблица1[[#This Row],[АСТРА]])","v":{"$error":"#REF!"}},{"$f":"SUMIFS(#REF!,#REF!,\"<\"&Таблица1[[#This Row],[Дл]],#REF!,\"=500\",#REF!,Таблица1[[#This Row],[Толщ]],#REF!,Таблица1[[#This Row],[АСТРА]])","v":{"$error":"#REF!"}},5,{"$f":"CONCATENATE(Таблица1[[#This Row],[слово]],\" \",Таблица1[[#This Row],[профиль]])","v":"Труба пл.ов. 30х15х1,2"},"Труба плоскоовальная 30х15, 1.2 мм, трпл-ов3015","Труба пл.ов.","30х15х1,2","30х15",1.2,{"$f":"CONCATENATE(Таблица1[[#This Row],[слово]],\" \",Таблица1[[#This Row],[Столбец35]])","v":"Труба пл.ов. 30х15"}]
[{"$f":"IF(Таблица1[[#This Row],[Столбец19]]=0,\"z\",\"\")","v":{"$error":"#REF!"}},6,null,6000,{"$f":"Таблица1[[#This Row],[АСТРА]]","v":"Труба плоскоовальная 30х15, 1.5 мм, трпл-ов3015"},{"$f":"Таблица1[[#This Row],[ГОСТ]]","v":"Труба пл.ов. 30х15х1,5"},1.5,{"$f":"SUMIFS(#REF!,#REF!,500,#REF!,Таблица1[[#This Row],[Дл]],#REF!,Таблица1[[#This Row],[Толщ]],#REF!,Таблица1[[#This Row],[АСТРА]])","v":{"$error":"#REF!"}},{"$f":"SUMIFS(#REF!,#REF!,Таблица1[[#This Row],[Дл]],#REF!,\"=500\",#REF!,Таблица1[[#This Row],[Толщ]],#REF!,Таблица1[[#This Row],[АСТРА]])","v":{"$error":"#REF!"}},{"$f":"SUMIFS(#REF!,#REF!,\"<\"&Таблица1[[#This Row],[Дл]],#REF!,\"=500\",#REF!,Таблица1[[#This Row],[Толщ]],#REF!,Таблица1[[#This Row],[АСТРА]])","v":{"$error":"#REF!"}},1.9179999999999999,{"$f":"SUMIFS($I$8:$I$30,$F$8:$F$30,Таблица1[[#This Row],[Столбец5]])","v":0},{"$f":"Таблица1[[#This Row],[Столбец8]]+Таблица1[[#This Row],[Столбец9]]","v":{"$error":"#REF!"}},{"$f":"SUMIFS(#REF!,#REF!,Таблица1[[#This Row],[Дл]],#REF!,\"=500\",#REF!,Таблица1[[#This Row],[Толщ]],#REF!,Таблица1[[#This Row],[АСТРА]])","v":{"$error":"#REF!"}},{"$f":"SUMIFS(#REF!,#REF!,\"<\"&Таблица1[[#This Row],[Дл]],#REF!,\"=500\",#REF!,Таблица1[[#This Row],[Толщ]],#REF!,Таблица1[[#This Row],[АСТРА]])","v":{"$error":"#REF!"}},{"$f":"Таблица1[[#This Row],[Столбец13]]+Таблица1[[#This Row],[Столбец14]]","v":{"$error":"#REF!"}},{"$f":"Таблица1[[#This Row],[Столбец28]]+Таблица1[[#This Row],[Столбец29]]-Таблица1[[#This Row],[Столбец27]]","v":{"$error":"#REF!"}},{"$f":"SUMIFS(#REF!,#REF!,Таблица1[[#This Row],[Дл]],#REF!,\"=500\",#REF!,Таблица1[[#This Row],[Толщ]],#REF!,Таблица1[[#This Row],[АСТРА]])","v":{"$error":"#REF!"}},{"$f":"SUMIFS(#REF!,#REF!,\"<\"&Таблица1[[#This Row],[Дл]],#REF!,\"=500\",#REF!,Таблица1[[#This Row],[Толщ]],#REF!,Таблица1[[#This Row],[АСТРА]])","v":{"$error":"#REF!"}},{"$f":"Таблица1[[#This Row],[Столбец17]]+Таблица1[[#This Row],[Столбец18]]","v":{"$error":"#REF!"}},null,null,null,{"$f":"SUMIFS(#REF!,#REF!,Таблица1[[#This Row],[Дл]],#REF!,\"=500\",#REF!,Таблица1[[#This Row],[Толщ]],#REF!,Таблица1[[#This Row],[АСТРА]])","v":{"$error":"#REF!"}},{"$f":"SUMIFS(#REF!,#REF!,\"<\"&Таблица1[[#This Row],[Дл]],#REF!,\"=500\",#REF!,Таблица1[[#This Row],[Толщ]],#REF!,Таблица1[[#This Row],[АСТРА]])","v":{"$error":"#REF!"}},{"$f":"Таблица1[[#This Row],[Столбец23]]+Таблица1[[#This Row],[Столбец24]]","v":{"$error":"#REF!"}},{"$f":"Таблица1[[#This Row],[Столбец28]]+Таблица1[[#This Row],[Столбец29]]-Таблица1[[#This Row],[Столбец27]]","v":{"$error":"#REF!"}},{"$f":"Таблица1[[#This Row],[резы]]*Таблица1[[#This Row],[шир.рез]]/1000*Таблица1[[#This Row],[коэф]]/2","v":0},{"$f":"SUMIFS(#REF!,#REF!,Таблица1[[#This Row],[Дл]],#REF!,\"=500\",#REF!,Таблица1[[#This Row],[Толщ]],#REF!,Таблица1[[#This Row],[АСТРА]])","v":{"$error":"#REF!"}},{"$f":"SUMIFS(#REF!,#REF!,\"<\"&Таблица1[[#This Row],[Дл]],#REF!,\"=500\",#REF!,Таблица1[[#This Row],[Толщ]],#REF!,Таблица1[[#This Row],[АСТРА]])","v":{"$error":"#REF!"}},5,{"$f":"CONCATENATE(Таблица1[[#This Row],[слово]],\" \",Таблица1[[#This Row],[профиль]])","v":"Труба пл.ов. 30х15х1,5"},"Труба плоскоовальная 30х15, 1.5 мм, трпл-ов3015","Труба пл.ов.","30х15х1,5","30х15",1.5,{"$f":"CONCATENATE(Таблица1[[#This Row],[слово]],\" \",Таблица1[[#This Row],[Столбец35]])","v":"Труба пл.ов. 30х15"}]
[]
[]
[]
[]
[]
[]
[null,"Подпись",null,null,null,"Инженер-технолог"]
[null,"Подпись",null,null,null,"Нач техотдела"]
[null,"Подпись",null,null,null,"Генеральный директор"]